Workbook

Sheet Synthesis
B2: 10 | C2: 0 | D2: 5 | G2: This excel sheet was used to switch the reference position
B3: 10 | C3: -20 | D3: 124 | G3: You can select any one of the four positions as the first reference position on whose coordinate system the Burmester curves will be drawn
B4: 20 | C4: -10 | D4: 45
B5: 0 | C5: 0 | D5: -80
K6: b2 | L6: (radians) | M6: b41 | N6: b42 | O6: -Z1x | P6: -Z1y | Q6: R1x | R6: R1y | S6: -Z2x | T6: -Z2y | U6: R2x | V6: R12y
A7: d3 | B7: =B3-$B$2 -> 0 | C7: =C3-$C$2 -> -20 | D7: a2 | E7: =F7*PI()/180 -> 2.07694181 | F7: =D3-$D$2 -> 119 | K7: 15 | L7: =K7*PI()/180 -> 0.2617993878 | M7: =Burmester(B7:C7,B8:C8,B9:C9,E7,E8,E9,L7) -> 6.045901967 | N7: 0.5343069852 | O7: =ThreePosition_Basic2(E7,E9,B7:C7,B9:C9,L7,M7) -> -6.69272342 | P7: -9.040080372 | Q7: 49.43991307 | R7: 52.51404272 | S7: =ThreePosition_Basic2(E7,E9,B7:C7,B9:C9,L7,N7) -> 12.01007862 | T7: -5.194820486 | U7: 12.13493132 | V7: -56.5567369
A8: d2 | B8: =B4-$B$2 -> 10 | C8: =C4-$C$2 -> -10 | D8: a2 | E8: =F8*PI()/180 -> 0.6981317008 | F8: =D4-$D$2 -> 40
A9: d4 | B9: -10 | C9: 0 | D9: a4 | E9: -1.483529864 | F9: -85
A11: b2 | C11: b41 | D11: b42 | E11: -Z1 | G11: R1 | I11: -Z2 | K11: R2
A12: 0 | B12: =A12*PI()/180 -> 0 | C12: =Burmester($B$7:$C$7,$B$8:$C$8,$B$9:$C$9,$E$7,$E$8,$E$9,B12) -> 3.736929677e-16 | D12: 0.1542168739 | E12: =ThreePosition_Basic2($E$7,$E$9,$B$7:$C$7,$B$9:$C$9,B12,C12) -> 5.740966555 | F12: -8.801266947 | G12: -5089271898514865 | H12: -6.1689863e+16 | I12: =ThreePosition_Basic2($E$7,$E$9,$B$7:$C$7,$B$9:$C$9,B12,D12) -> 5.890450164 | J12: -10 | K12: -27.87884072 | L12: -172.3516652 | M12: =K12 -> -27.87884072 | N12: =L12 -> -172.3516652
A13: 0.2 | B13: =A13*PI()/180 -> 0.003490658504 | C13: =Burmester($B$7:$C$7,$B$8:$C$8,$B$9:$C$9,$E$7,$E$8,$E$9,B13) -> 6.27455847 | D13: 0.1648111763 | E13: =ThreePosition_Basic2($E$7,$E$9,$B$7:$C$7,$B$9:$C$9,B13,C13) -> 0.5220528563 | F13: -10.68167725 | G13: 1059.947972 | H13: 2441.812404 | I13: =ThreePosition_Basic2($E$7,$E$9,$B$7:$C$7,$B$9:$C$9,B13,D13) -> 6.188216891 | J13: -9.894768612 | K13: -23.9253727 | L13: -162.8693344 | M13: =K13 -> -23.9253727 | N13: =L13 -> -162.8693344
A14: 0.4 | B14: 0.006981317008 | C14: =Burmester($B$7:$C$7,$B$8:$C$8,$B$9:$C$9,$E$7,$E$8,$E$9,B14) -> 6.266848315 | D14: 0.174487332 | E14: =ThreePosition_Basic2($E$7,$E$9,$B$7:$C$7,$B$9:$C$9,B14,C14) -> 0.2489699479 | F14: -10.66317327 | G14: 570.4439531 | H14: 1270.287956 | I14: =ThreePosition_Basic2($E$7,$E$9,$B$7:$C$7,$B$9:$C$9,B14,D14) -> 6.453021886 | J14: -9.794045051 | K14: -20.73042161 | L14: -155.1520001 | M14: -20.73042161 | N14: -155.1520001
A15: 0.6 | B15: 0.01047197551 | C15: =Burmester($B$7:$C$7,$B$8:$C$8,$B$9:$C$9,$E$7,$E$8,$E$9,B15) -> 6.259823212 | D15: 0.1834769627 | E15: =ThreePosition_Basic2($E$7,$E$9,$B$7:$C$7,$B$9:$C$9,B15,C15) -> 0.0004298639361 | F15: -10.64239799 | G15: 405.500256 | H15: 876.0430831 | I15: =ThreePosition_Basic2($E$7,$E$9,$B$7:$C$7,$B$9:$C$9,B15,D15) -> 6.692839405 | J15: -9.696822504 | K15: -18.06359857 | L15: -148.6609998 | M15: -18.06359857 | N15: -148.6609998
A16: 0.8 | B16: 0.01396263402 | C16: =Burmester($B$7:$C$7,$B$8:$C$8,$B$9:$C$9,$E$7,$E$8,$E$9,B16) -> 6.253334474 | D16: 0.1919287456 | E16: =ThreePosition_Basic2($E$7,$E$9,$B$7:$C$7,$B$9:$C$9,B16,C16) -> -0.2287077578 | F16: -10.61997892 | G16: 321.9547555 | H16: 676.7100044 | I16: =ThreePosition_Basic2($E$7,$E$9,$B$7:$C$7,$B$9:$C$9,B16,D16) -> 6.912819811 | J16: -9.602456313 | K16: -15.78549207 | L16: -143.070958 | M16: -15.78549207 | N16: -143.070958
A17: 1 | B17: 0.01745329252 | C17: =Burmester($B$7:$C$7,$B$8:$C$8,$B$9:$C$9,$E$7,$E$8,$E$9,B17) -> 6.247279959 | D17: 0.199944812 | E17: =ThreePosition_Basic2($E$7,$E$9,$B$7:$C$7,$B$9:$C$9,B17,C17) -> -0.4419934955 | F17: -10.59634138 | G17: 271.1120474 | H17: 555.6686165 | I17: =ThreePosition_Basic2($E$7,$E$9,$B$7:$C$7,$B$9:$C$9,B17,D17) -> 7.116523399 | J17: -9.510504296 | K17: -13.80525494 | L17: -138.1702077 | M17: -13.80525494 | N17: -138.1702077
A18: 1.2 | B18: 0.02094395102 | C18: =Burmester($B$7:$C$7,$B$8:$C$8,$B$9:$C$9,$E$7,$E$8,$E$9,B18) -> 6.241585944 | D18: 0.2075988764 | E18: =ThreePosition_Basic2($E$7,$E$9,$B$7:$C$7,$B$9:$C$9,B18,C18) -> -0.6420041307 | F18: -10.57178786 | G18: 236.7080901 | H18: 473.970742 | I18: =ThreePosition_Basic2($E$7,$E$9,$B$7:$C$7,$B$9:$C$9,B18,D18) -> 7.306536388 | J18: -9.42064743 | K18: -12.06037661 | L18: -133.8133468 | M18: -12.06037661 | N18: -133.8133468
A19: 1.4 | B19: 0.02443460953 | C19: =Burmester($B$7:$C$7,$B$8:$C$8,$B$9:$C$9,$E$7,$E$8,$E$9,B19) -> 6.236197167 | D19: 0.2149461904 | E19: =ThreePosition_Basic2($E$7,$E$9,$B$7:$C$7,$B$9:$C$9,B19,C19) -> -0.8306816357 | F19: -10.5465414 | G19: 211.7545119 | H19: 414.8825019 | I19: =ThreePosition_Basic2($E$7,$E$9,$B$7:$C$7,$B$9:$C$9,B19,D19) -> 7.484809923 | J19: -9.332646407 | K19: -10.50600894 | L19: -129.8962265 | M19: -10.50600894 | N19: -129.8962265
A20: 1.6 | B20: 0.02792526803 | C20: =Burmester($B$7:$C$7,$B$8:$C$8,$B$9:$C$9,$E$7,$E$8,$E$9,B20) -> 6.231070953 | D20: 0.2220294196 | E20: =ThreePosition_Basic2($E$7,$E$9,$B$7:$C$7,$B$9:$C$9,B20,C20) -> -1.009533794 | F20: -10.52077119 | G20: 192.7462807 | H20: 370.011938 | I20: =ThreePosition_Basic2($E$7,$E$9,$B$7:$C$7,$B$9:$C$9,B20,D20) -> 7.652860696 | J20: -9.246316059 | K20: -9.108890367 | L20: -126.3417279 | M20: -9.108890367 | N20: -126.3417279
A21: 1.8 | B21: 0.03141592654 | C21: =Burmester($B$7:$C$7,$B$8:$C$8,$B$9:$C$9,$E$7,$E$8,$E$9,B21) -> 6.22617354 | D21: 0.2288823156 | E21: =ThreePosition_Basic2($E$7,$E$9,$B$7:$C$7,$B$9:$C$9,B21,C21) -> -1.179759838 | F21: -10.49460853 | G21: 177.7292834 | H21: 334.6810478 | I21: =ThreePosition_Basic2($E$7,$E$9,$B$7:$C$7,$B$9:$C$9,B21,D21) -> 7.811896601 | J21: -9.161509417 | K21: -7.843677024 | L21: -123.0911808 | M21: -7.843677024 | N21: -123.0911808
A22: 2 | B22: 0.03490658504 | C22: =Burmester($B$7:$C$7,$B$8:$C$8,$B$9:$C$9,$E$7,$E$8,$E$9,B22) -> 6.22147768 | D22: 0.2355321169 | E22: =ThreePosition_Basic2($E$7,$E$9,$B$7:$C$7,$B$9:$C$9,B22,C22) -> -1.342332788 | F22: -10.46815714 | G22: 165.5265023 | H22: 306.0726021 | I22: =ThreePosition_Basic2($E$7,$E$9,$B$7:$C$7,$B$9:$C$9,B22,D22) -> 7.96289907 | J22: -9.078107324 | K22: -6.690619673 | L22: -120.0989361 | M22: -6.690619673 | N22: -120.0989361
A23: 2.2 | B23: 0.03839724354 | C23: =Burmester($B$7:$C$7,$B$8:$C$8,$B$9:$C$9,$E$7,$E$8,$E$9,B23) -> 6.216961009 | D23: 0.2420011774 | E23: =ThreePosition_Basic2($E$7,$E$9,$B$7:$C$7,$B$9:$C$9,B23,C23) -> -1.498055446 | F23: -10.44150027 | G23: 155.3858033 | H23: 282.3866865 | I23: =ThreePosition_Basic2($E$7,$E$9,$B$7:$C$7,$B$9:$C$9,B23,D23) -> 8.106679085 | J23: -8.996011401 | K23: -5.63403412 | L23: -117.3287941 | M23: -5.63403412 | N23: -117.3287941
A24: 2.4 | B24: 0.04188790205 | C24: =Burmester($B$7:$C$7,$B$8:$C$8,$B$9:$C$9,$E$7,$E$8,$E$9,B24) -> 6.212604907 | D24: 0.2483081072 | E24: =ThreePosition_Basic2($E$7,$E$9,$B$7:$C$7,$B$9:$C$9,B24,C24) -> -1.647599701 | F24: -10.41470553 | G24: 146.8035545 | H24: 262.4183296 | I24: =ThreePosition_Basic2($E$7,$E$9,$B$7:$C$7,$B$9:$C$9,B24,D24) -> 8.24391648 | J24: -8.915139147 | K24: -4.6612606 | L24: -114.7515782 | M24: -4.6612606 | N24: -114.7515782
A25: 2.6 | B25: 0.04537856055 | C25: =Burmester($B$7:$C$7,$B$8:$C$8,$B$9:$C$9,$E$7,$E$8,$E$9,B25) -> 6.208393679 | D25: 0.2544685922 | E25: =ThreePosition_Basic2($E$7,$E$9,$B$7:$C$7,$B$9:$C$9,B25,C25) -> -1.79153483 | F25: -10.38782845 | G25: 139.4294836 | H25: 245.3296832 | I25: =ThreePosition_Basic2($E$7,$E$9,$B$7:$C$7,$B$9:$C$9,B25,D25) -> 8.37518826 | J25: -8.835420416 | K25: -3.761935806 | L25: -112.3434377 | M25: -3.761935806 | N25: -112.3434377
A26: 2.8 | B26: 0.04886921906 | C26: =Burmester($B$7:$C$7,$B$8:$C$8,$B$9:$C$9,$E$7,$E$8,$E$9,B26) -> 6.204313949 | D26: 0.2604959966 | E26: =ThreePosition_Basic2($E$7,$E$9,$B$7:$C$7,$B$9:$C$9,B26,C26) -> -1.930348376 | F26: -10.36091503 | G26: 133.012205 | H26: 230.5195943 | I26: =ThreePosition_Basic2($E$7,$E$9,$B$7:$C$7,$B$9:$C$9,B26,D26) -> 8.500989474 | J26: -8.756794845 | K26: -2.927471242 | L26: -110.0846336 | M26: -2.927471242 | N26: -110.0846336
A27: 3 | B27: 0.05235987756 | C27: =Burmester($B$7:$C$7,$B$8:$C$8,$B$9:$C$9,$E$7,$E$8,$E$9,B27) -> 6.200354214 | D27: 0.2664018152 | E27: =ThreePosition_Basic2($E$7,$E$9,$B$7:$C$7,$B$9:$C$9,B27,C27) -> -2.06446183 | F27: -10.33400365 | G27: 127.3664681 | H27: 217.5451887 | I27: =ThreePosition_Basic2($E$7,$E$9,$B$7:$C$7,$B$9:$C$9,B27,D27) -> 8.621748914 | J27: -8.679209924 | K27: -2.150671523 | L27: -107.9586506 | M27: -2.150671523 | N27: -107.9586506
A28: 3.2 | B28: 0.05585053606 | C28: =Burmester($B$7:$C$7,$B$8:$C$8,$B$9:$C$9,$E$7,$E$8,$E$9,B28) -> 6.196504494 | D28: 0.272196018 | E28: =ThreePosition_Basic2($E$7,$E$9,$B$7:$C$7,$B$9:$C$9,B28,C28) -> -2.194242636 | F28: -10.30712656 | G28: 122.3526402 | H28: 206.0727547 | I28: =ThreePosition_Basic2($E$7,$E$9,$B$7:$C$7,$B$9:$C$9,B28,D28) -> 8.737841119 | J28: -8.602619533 | K28: -1.425449877 | L28: -105.9515357 | M28: -1.425449877 | N28: -105.9515357
A29: 3.4 | B29: 0.05934119457 | C29: =Burmester($B$7:$C$7,$B$8:$C$8,$B$9:$C$9,$E$7,$E$8,$E$9,B29) -> 6.192756064 | D29: 0.2778873179 | E29: =ThreePosition_Basic2($E$7,$E$9,$B$7:$C$7,$B$9:$C$9,B29,C29) -> -2.320013513 | F29: -10.28031099 | G29: 117.8634009 | H29: 195.84589 | I29: =ThreePosition_Basic2($E$7,$E$9,$B$7:$C$7,$B$9:$C$9,B29,D29) -> 8.849595704 | J29: -8.526982807 | K29: -0.7466126101 | L29: -104.051398 | M29: -0.7466126101 | N29: -104.051398
A30: 3.6 | B30: 0.06283185307 | C30: =Burmester($B$7:$C$7,$B$8:$C$8,$B$9:$C$9,$E$7,$E$8,$E$9,B30) -> 6.18910125 | D30: 0.2834833805 | E30: =ThreePosition_Basic2($E$7,$E$9,$B$7:$C$7,$B$9:$C$9,B30,C30) -> -2.442059798 | F30: -10.25358003 | G30: 113.8148481 | H30: 186.664214 | I30: =ThreePosition_Basic2($E$7,$E$9,$B$7:$C$7,$B$9:$C$9,B30,D30) -> 8.957304714 | J30: -8.452263252 | K30: -0.1096934231 | L30: -102.2480241 | M30: -0.1096934231 | N30: -102.2480241
A31: 3.8 | B31: 0.06632251158 | C31: =Burmester($B$7:$C$7,$B$8:$C$8,$B$9:$C$9,$E$7,$E$8,$E$9,B31) -> 6.185533257 | D31: 0.2889909912 | E31: =ThreePosition_Basic2($E$7,$E$9,$B$7:$C$7,$B$9:$C$9,B31,C31) -> -2.5606353 | F31: -10.22695333 | G31: 110.1403983 | H31: 178.3687681 | I31: =ThreePosition_Basic2($E$7,$E$9,$B$7:$C$7,$B$9:$C$9,B31,D31) -> 9.061228477 | J31: -8.37842804 | K31: 0.4891756448 | L31: -100.5325787 | M31: 0.4891756448 | N31: -100.5325787
A32: 4 | B32: 0.06981317008 | C32: =Burmester($B$7:$C$7,$B$8:$C$8,$B$9:$C$9,$E$7,$E$8,$E$9,B32) -> 6.182046033 | D32: 0.2944161895 | E32: =ThreePosition_Basic2($E$7,$E$9,$B$7:$C$7,$B$9:$C$9,B32,C32) -> -2.675967018 | F32: -10.20044768 | G32: 106.7865045 | H32: 170.8317688 | I32: =ThreePosition_Basic2($E$7,$E$9,$B$7:$C$7,$B$9:$C$9,B32,D32) -> 9.161600331 | J32: -8.305447449 | K32: 1.053365925 | L32: -98.89736965 | M32: 1.053365925 | N32: -98.89736965
A33: 4.2 | B33: 0.07330382858 | C33: =Burmester($B$7:$C$7,$B$8:$C$8,$B$9:$C$9,$E$7,$E$8,$E$9,B33) -> 6.178634167 | D33: 0.2997643782 | E33: =ThreePosition_Basic2($E$7,$E$9,$B$7:$C$7,$B$9:$C$9,B33,C33) -> -2.788258989 | F33: -10.17407743 | G33: 103.7095897 | H33: 163.9492693 | I33: =ThreePosition_Basic2($E$7,$E$9,$B$7:$C$7,$B$9:$C$9,B33,D33) -> 9.258630477 | J33: -8.233294403 | K33: 1.585833152 | L33: -97.33565966 | M33: 1.585833152 | N33: -97.33565966
A34: 4.4 | B34: 0.07679448709 | C34: =Burmester($B$7:$C$7,$B$8:$C$8,$B$9:$C$9,$E$7,$E$8,$E$9,B34) -> 6.175292793 | D34: 0.3050404126 | E34: =ThreePosition_Basic2($E$7,$E$9,$B$7:$C$7,$B$9:$C$9,B34,C34) -> -2.89769544 | F34: -10.14785485 | G34: 100.8738101 | H34: 157.6358082 | I34: =ThreePosition_Basic2($E$7,$E$9,$B$7:$C$7,$B$9:$C$9,B34,D34) -> 9.352509136 | J34: -8.161944103 | K34: 2.089182662 | L34: -95.84151615 | M34: 2.089182662 | N34: -95.84151615
A35: 4.6 | B35: 0.08028514559 | C35: =Burmester($B$7:$C$7,$B$8:$C$8,$B$9:$C$9,$E$7,$E$8,$E$9,B35) -> 6.172017518 | D35: 0.3102486749 | E35: =ThreePosition_Basic2($E$7,$E$9,$B$7:$C$7,$B$9:$C$9,B35,C35) -> -3.004443412 | F35: -10.1217905 | G35: 98.24939763 | H35: 151.8204438 | I35: =ThreePosition_Basic2($E$7,$E$9,$B$7:$C$7,$B$9:$C$9,B35,D35) -> 9.443409176 | J35: -8.091373717 | K35: 2.56572231 | L35: -94.40968876 | M35: 2.56572231 | N35: -94.40968876
A36: 4.8 | B36: 0.0837758041 | C36: =Burmester($B$7:$C$7,$B$8:$C$8,$B$9:$C$9,$E$7,$E$8,$E$9,B36) -> 6.168804362 | D36: 0.3153931355 | E36: =ThreePosition_Basic2($E$7,$E$9,$B$7:$C$7,$B$9:$C$9,B36,C36) -> -3.108654945 | F36: -10.09589338 | G36: 95.81141235 | H36: 146.4437707 | I36: =ThreePosition_Basic2($E$7,$E$9,$B$7:$C$7,$B$9:$C$9,B36,D36) -> 9.531488305 | J36: -8.021562129 | K36: 3.017505805 | L36: -93.03550935 | M36: 3.017505805 | N36: -93.03550935
A37: 5 | B37: 0.0872664626 | C37: =Burmester($B$7:$C$7,$B$8:$C$8,$B$9:$C$9,$E$7,$E$8,$E$9,B37) -> 6.165649703 | D37: 0.3204774048 | E37: =ThreePosition_Basic2($E$7,$E$9,$B$7:$C$7,$B$9:$C$9,B37,C37) -> -3.210468915 | F37: -10.07017125 | G37: 93.53879231 | H37: 141.4556467 | I37: =ThreePosition_Basic2($E$7,$E$9,$B$7:$C$7,$B$9:$C$9,B37,D37) -> 9.616890909 | J37: -7.952489721 | K37: 3.446368436 | L37: -91.71480965 | M37: 3.446368436 | N37: -91.71480965
A38: 5.2 | B38: 0.0907571211 | C38: =Burmester($B$7:$C$7,$B$8:$C$8,$B$9:$C$9,$E$7,$E$8,$E$9,B38) -> 6.162550239 | D38: 0.3255047766 | E38: =ThreePosition_Basic2($E$7,$E$9,$B$7:$C$7,$B$9:$C$9,B38,C38) -> -3.310012593 | F38: -10.0446307 | G38: 91.41361999 | H38: 136.8134391 | I38: =ThreePosition_Basic2($E$7,$E$9,$B$7:$C$7,$B$9:$C$9,B38,D38) -> 9.69974962 | J38: -7.884138197 | K38: 3.853956762 | L38: -90.44385281 | M38: 3.853956762 | N38: -90.44385281
A39: 5.4 | B39: 0.09424777961 | C39: =Burmester($B$7:$C$7,$B$8:$C$8,$B$9:$C$9,$E$7,$E$8,$E$9,B39) -> 6.159502943 | D39: 0.3304782657 | E39: =ThreePosition_Basic2($E$7,$E$9,$B$7:$C$7,$B$9:$C$9,B39,C39) -> -3.40740297 | F39: -10.01927738 | G39: 89.4205502 | H39: 132.4806564 | I39: =ThreePosition_Basic2($E$7,$E$9,$B$7:$C$7,$B$9:$C$9,B39,D39) -> 9.780186642 | J39: -7.816490429 | K39: 4.241753432 | L39: -89.21927633 | M39: 4.241753432 | N39: -89.21927633
A40: 5.6 | B40: 0.09773843811 | C40: =Burmester($B$7:$C$7,$B$8:$C$8,$B$9:$C$9,$E$7,$E$8,$E$9,B40) -> 6.156505037 | D40: 0.3354006393 | E40: =ThreePosition_Basic2($E$7,$E$9,$B$7:$C$7,$B$9:$C$9,B40,C40) -> -3.502747897 | F40: -9.994116072 | G40: 87.5463591 | H40: 128.4258705 | I40: =ThreePosition_Basic2($E$7,$E$9,$B$7:$C$7,$B$9:$C$9,B40,D40) -> 9.858314893 | J40: -7.74953033 | K40: 4.611098069 | L40: -88.03804396 | M40: 4.611098069 | N40: -88.03804396
A41: 5.8 | B41: 0.1012290966 | C41: =Burmester($B$7:$C$7,$B$8:$C$8,$B$9:$C$9,$E$7,$E$8,$E$9,B41) -> 6.153553965 | D41: 0.3402744443 | E41: =ThreePosition_Basic2($E$7,$E$9,$B$7:$C$7,$B$9:$C$9,B41,C41) -> -3.59614706 | F41: -9.969150836 | G41: 85.77958551 | H41: 124.6218595 | I41: =ThreePosition_Basic2($E$7,$E$9,$B$7:$C$7,$B$9:$C$9,B41,D41) -> 9.93423899 | J41: -7.683242741 | K41: 4.96320494 | L41: -86.89740514 | M41: 4.96320494 | N41: -86.89740514
A42: 6 | B42: 0.1047197551 | C42: =Burmester($B$7:$C$7,$B$8:$C$8,$B$9:$C$9,$E$7,$E$8,$E$9,B42) -> 6.150647367 | D42: 0.3451020305 | E42: =ThreePosition_Basic2($E$7,$E$9,$B$7:$C$7,$B$9:$C$9,B42,C42) -> -3.687692829 | F42: -9.944385073 | G42: 84.11024301 | H42: 121.0449191 | I42: =ThreePosition_Basic2($E$7,$E$9,$B$7:$C$7,$B$9:$C$9,B42,D42) -> 10.0080561 | J42: -7.617613333 | K42: 5.299177986 | L42: -85.79486046 | M42: 5.299177986 | N42: -85.79486046
A43: 6.2 | B43: 0.1082104136 | C43: =Burmester($B$7:$C$7,$B$8:$C$8,$B$9:$C$9,$E$7,$E$8,$E$9,B43) -> 6.147783057 | D43: 0.3498855716 | E43: =ThreePosition_Basic2($E$7,$E$9,$B$7:$C$7,$B$9:$C$9,B43,C43) -> -3.777470993 | F43: -9.919821617 | G43: 82.52958702 | H43: 117.6743068 | I43: =ThreePosition_Basic2($E$7,$E$9,$B$7:$C$7,$B$9:$C$9,B43,D43) -> 10.07985667 | J43: -7.552628531 | K43: 5.620023672 | L43: -84.72813221 | M43: 5.620023672 | N43: -84.72813221
A44: 6.4 | B44: 0.1117010721 | C44: =Burmester($B$7:$C$7,$B$8:$C$8,$B$9:$C$9,$E$7,$E$8,$E$9,B44) -> 6.14495901 | D44: 0.3546270825 | E44: =ThreePosition_Basic2($E$7,$E$9,$B$7:$C$7,$B$9:$C$9,B44,C44) -> -3.865561405 | F44: -9.895462802 | G44: 81.029925 | H44: 114.4917878 | I44: =ThreePosition_Basic2($E$7,$E$9,$B$7:$C$7,$B$9:$C$9,B44,D44) -> 10.14972509 | J44: -7.488275438 | K44: 5.926662026 | L44: -83.69513908 | M44: 5.926662026 | N44: -83.69513908
A45: 6.6 | B45: 0.1151917306 | C45: =Burmester($B$7:$C$7,$B$8:$C$8,$B$9:$C$9,$E$7,$E$8,$E$9,B45) -> 6.142173345 | D45: 0.3593284351 | E45: =ThreePosition_Basic2($E$7,$E$9,$B$7:$C$7,$B$9:$C$9,B45,C45) -> -3.952038546 | F45: -9.871310521 | G45: 79.60446065 | H45: 111.4812635 | I45: =ThreePosition_Basic2($E$7,$E$9,$B$7:$C$7,$B$9:$C$9,B45,D45) -> 10.21774026 | J45: -7.424541771 | K45: 6.219936163 | L45: -82.69397432 | M45: 6.219936163 | N45: -82.69397432
A46: 6.8 | B46: 0.1186823891 | C46: =Burmester($B$7:$C$7,$B$8:$C$8,$B$9:$C$9,$E$7,$E$8,$E$9,B46) -> 6.139424307 | D46: 0.3639913715 | E46: =ThreePosition_Basic2($E$7,$E$9,$B$7:$C$7,$B$9:$C$9,B46,C46) -> -4.03697202 | F46: -9.847366276 | G46: 78.24716515 | H46: 108.6284636 | I46: =ThreePosition_Basic2($E$7,$E$9,$B$7:$C$7,$B$9:$C$9,B46,D46) -> 10.28397606 | J46: -7.361415809 | K46: 6.500620532 | L46: -81.7228869 | M46: 6.500620532 | N46: -81.7228869
A47: 7 | B47: 0.1221730476 | C47: =Burmester($B$7:$C$7,$B$8:$C$8,$B$9:$C$9,$E$7,$E$8,$E$9,B47) -> 6.136710262 | D47: 0.3686175167 | E47: =ThreePosition_Basic2($E$7,$E$9,$B$7:$C$7,$B$9:$C$9,B47,C47) -> -4.120426993 | F47: -9.823631224 | G47: 76.95267024 | H47: 105.9206908 | I47: =ThreePosition_Basic2($E$7,$E$9,$B$7:$C$7,$B$9:$C$9,B47,D47) -> 10.34850184 | J47: -7.298886345 | K47: 6.7694281 | L47: -80.7802651 | M47: 6.7694281 | N47: -80.7802651
A48: 7.2 | B48: 0.1256637061 | C48: =Burmester($B$7:$C$7,$B$8:$C$8,$B$9:$C$9,$E$7,$E$8,$E$9,B48) -> 6.13402968 | D48: 0.3732083886 | E48: =ThreePosition_Basic2($E$7,$E$9,$B$7:$C$7,$B$9:$C$9,B48,C48) -> -4.202464584 | F48: -9.800106219 | G48: 75.71617869 | H48: 103.3466075 | I48: =ThreePosition_Basic2($E$7,$E$9,$B$7:$C$7,$B$9:$C$9,B48,D48) -> 10.41138278 | J48: -7.23694264 | K48: 7.027016612 | L48: -79.86462215 | M48: 7.027016612 | N48: -79.86462215
A49: 7.4 | B49: 0.1291543646 | C49: =Burmester($B$7:$C$7,$B$8:$C$8,$B$9:$C$9,$E$7,$E$8,$E$9,B49) -> 6.131381131 | D49: 0.3777654079 | E49: =ThreePosition_Basic2($E$7,$E$9,$B$7:$C$7,$B$9:$C$9,B49,C49) -> -4.283142208 | F49: -9.776791842 | G49: 74.53338918 | H49: 100.8960561 | I49: =ThreePosition_Basic2($E$7,$E$9,$B$7:$C$7,$B$9:$C$9,B49,D49) -> 10.47268023 | J49: -7.175574389 | K49: 7.273994085 | L49: -78.97458379 | M49: 7.273994085 | N49: -78.97458379
A50: 7.6 | B50: 0.1326450232 | C50: =Burmester($B$7:$C$7,$B$8:$C$8,$B$9:$C$9,$E$7,$E$8,$E$9,B50) -> 6.128763272 | D50: 0.3822899061 | E50: =ThreePosition_Basic2($E$7,$E$9,$B$7:$C$7,$B$9:$C$9,B50,C50) -> -4.362513884 | F50: -9.753688433 | G50: 73.40043279 | H50: 98.55990762 | I50: =ThreePosition_Basic2($E$7,$E$9,$B$7:$C$7,$B$9:$C$9,B50,D50) -> 10.53245206 | J50: -7.114771685 | K50: 7.510923634 | L50: -78.10887718 | M50: 7.510923634 | N50: -78.10887718
A51: 7.8 | B51: 0.1361356817 | C51: =Burmester($B$7:$C$7,$B$8:$C$8,$B$9:$C$9,$E$7,$E$8,$E$9,B51) -> 6.126174842 | D51: 0.3867831332 | E51: =ThreePosition_Basic2($E$7,$E$9,$B$7:$C$7,$B$9:$C$9,B51,C51) -> -4.440630516 | F51: -9.73079612 | G51: 72.31381901 | H51: 96.32993289 | I51: =ThreePosition_Basic2($E$7,$E$9,$B$7:$C$7,$B$9:$C$9,B51,D51) -> 10.5907529 | J51: -7.054524992 | K51: 7.738327728 | L51: -77.26632125 | M51: 7.738327728 | N51: -77.26632125
A52: 8 | B52: 0.1396263402 | C52: =Burmester($B$7:$C$7,$B$8:$C$8,$B$9:$C$9,$E$7,$E$8,$E$9,B52) -> 6.123614654 | D52: 0.3912462643 | E52: =ThreePosition_Basic2($E$7,$E$9,$B$7:$C$7,$B$9:$C$9,B52,C52) -> -4.517540133 | F52: -9.70811484 | G52: 71.27038986 | H52: 94.19869318 | I52: =ThreePosition_Basic2($E$7,$E$9,$B$7:$C$7,$B$9:$C$9,B52,D52) -> 10.64763442 | J52: -6.994825113 | K52: 7.956691956 | L52: -76.44581811 | M52: 7.956691956 | N52: -76.44581811
A53: 8.2 | B53: 0.1431169987 | C53: =Burmester($B$7:$C$7,$B$8:$C$8,$B$9:$C$9,$E$7,$E$8,$E$9,B53) -> 6.121081593 | D53: 0.395680406 | E53: =ThreePosition_Basic2($E$7,$E$9,$B$7:$C$7,$B$9:$C$9,B53,C53) -> -4.59328812 | F53: -9.685644362 | G53: 70.26728045 | H53: 92.15944611 | I53: =ThreePosition_Basic2($E$7,$E$9,$B$7:$C$7,$B$9:$C$9,B53,D53) -> 10.70314553 | J53: -6.935663173 | K53: 8.166468372 | L53: -75.64634548 | M53: 8.166468372 | N53: -75.64634548
A54: 8.4 | B54: 0.1466076572 | C54: =Burmester($B$7:$C$7,$B$8:$C$8,$B$9:$C$9,$E$7,$E$8,$E$9,B54) -> 6.118574603 | D54: 0.400086601 | E54: =ThreePosition_Basic2($E$7,$E$9,$B$7:$C$7,$B$9:$C$9,B54,C54) -> -4.667917411 | F54: -9.663384305 | G54: 69.30188514 | H54: 90.20606501 | I54: =ThreePosition_Basic2($E$7,$E$9,$B$7:$C$7,$B$9:$C$9,B54,D54) -> 10.7573326 | J54: -6.87703059 | K54: 8.368078463 | L54: -74.86694988 | M54: 8.368078463 | N54: -74.86694988
A55: 8.6 | B55: 0.1500983157 | C55: =Burmester($B$7:$C$7,$B$8:$C$8,$B$9:$C$9,$E$7,$E$8,$E$9,B55) -> 6.11609269 | D55: 0.4044658337 | E55: =ThreePosition_Basic2($E$7,$E$9,$B$7:$C$7,$B$9:$C$9,B55,C55) -> -4.741468677 | F55: -9.641334154 | G55: 68.37182832 | H55: 88.33296925 | I55: =ThreePosition_Basic2($E$7,$E$9,$B$7:$C$7,$B$9:$C$9,B55,D55) -> 10.81023964 | J55: -6.818919064 | K55: 8.561915801 | L55: -74.10674069 | M55: 8.561915801 | N55: -74.10674069
A56: 8.8 | B56: 0.1535889742 | C56: =Burmester($B$7:$C$7,$B$8:$C$8,$B$9:$C$9,$E$7,$E$8,$E$9,B56) -> 6.113634911 | D56: 0.4088190345 | E56: =ThreePosition_Basic2($E$7,$E$9,$B$7:$C$7,$B$9:$C$9,B56,C56) -> -4.813980487 | F56: -9.619493278 | G56: 67.47493907 | H56: 86.53506392 | I56: =ThreePosition_Basic2($E$7,$E$9,$B$7:$C$7,$B$9:$C$9,B56,D56) -> 10.86190846 | J56: -6.761320551 | K56: 8.748348418 | L56: -73.36488469 | M56: 8.748348418 | N56: -73.36488469
A57: 9 | B57: 0.1570796327 | C57: =Burmester($B$7:$C$7,$B$8:$C$8,$B$9:$C$9,$E$7,$E$8,$E$9,B57) -> 6.111200377 | D57: 0.4131470834 | E57: =ThreePosition_Basic2($E$7,$E$9,$B$7:$C$7,$B$9:$C$9,B57,C57) -> -4.885489458 | F57: -9.597860938 | G57: 66.60922917 | H57: 84.80768736 | I57: =ThreePosition_Basic2($E$7,$E$9,$B$7:$C$7,$B$9:$C$9,B57,D57) -> 10.91237886 | J57: -6.704227252 | K57: 8.927720929 | L57: -72.64060131 | M57: 8.927720929 | N57: -72.64060131
A58: 9.2 | B58: 0.1605702912 | C58: =Burmester($B$7:$C$7,$B$8:$C$8,$B$9:$C$9,$E$7,$E$8,$E$9,B58) -> 6.108788242 | D58: 0.417450814 | E58: =ThreePosition_Basic2($E$7,$E$9,$B$7:$C$7,$B$9:$C$9,B58,C58) -> -4.956030391 | F58: -9.576436303 | G58: 65.77287385 | H58: 83.14656542 | I58: =ThreePosition_Basic2($E$7,$E$9,$B$7:$C$7,$B$9:$C$9,B58,D58) -> 10.96168869 | J58: -6.647631597 | K58: 9.10035644 | L58: -71.93315826 | M58: 9.10035644 | N58: -71.93315826
A59: 9.4 | B59: 0.1640609497 | C59: =Burmester($B$7:$C$7,$B$8:$C$8,$B$9:$C$9,$E$7,$E$8,$E$9,B59) -> 6.106397704 | D59: 0.4217310167 | E59: =ThreePosition_Basic2($E$7,$E$9,$B$7:$C$7,$B$9:$C$9,B59,C59) -> -5.025636396 | F59: -9.55521846 | G59: 64.96419503 | H59: 81.54777148 | I59: =ThreePosition_Basic2($E$7,$E$9,$B$7:$C$7,$B$9:$C$9,B59,D59) -> 11.00987406 | J59: -6.591526234 | K59: 9.266558273 | L59: -71.24186764 | M59: 9.266558273 | N59: -71.24186764
A60: 9.6 | B60: 0.1675516082 | C60: =Burmester($B$7:$C$7,$B$8:$C$8,$B$9:$C$9,$E$7,$E$8,$E$9,B60) -> 6.104028003 | D60: 0.4259884415 | E60: =ThreePosition_Basic2($E$7,$E$9,$B$7:$C$7,$B$9:$C$9,B60,C60) -> -5.094339004 | F60: -9.534206423 | G60: 64.18164653 | H60: 80.00769128 | I60: =ThreePosition_Basic2($E$7,$E$9,$B$7:$C$7,$B$9:$C$9,B60,D60) -> 11.0569694 | J60: -6.535904012 | K60: 9.426611514 | L60: -70.56608249 | M60: 9.426611514 | N60: -70.56608249
A61: 9.8 | B61: 0.1710422667 | C61: =Burmester($B$7:$C$7,$B$8:$C$8,$B$9:$C$9,$E$7,$E$8,$E$9,B61) -> 6.101678414 | D61: 0.430223801 | E61: =ThreePosition_Basic2($E$7,$E$9,$B$7:$C$7,$B$9:$C$9,B61,C61) -> -5.162168271 | F61: -9.513399141 | G61: 63.42380108 | H61: 78.52299205 | I61: =ThreePosition_Basic2($E$7,$E$9,$B$7:$C$7,$B$9:$C$9,B61,D61) -> 11.1030076 | J61: -6.480757977 | K61: 9.580784419 | L61: -69.90519355 | M61: 9.580784419 | N61: -69.90519355
A62: 10 | B62: 0.1745329252 | C62: =Burmester($B$7:$C$7,$B$8:$C$8,$B$9:$C$9,$E$7,$E$8,$E$9,B62) -> 6.099348249 | D62: 0.434437773 | E62: =ThreePosition_Basic2($E$7,$E$9,$B$7:$C$7,$B$9:$C$9,B62,C62) -> -5.229152873 | F62: -9.492795507 | G62: 62.68933886 | H62: 77.09059523 | I62: =ThreePosition_Basic2($E$7,$E$9,$B$7:$C$7,$B$9:$C$9,B62,D62) -> 11.14802006 | J62: -6.426081354 | K62: 9.729329683 | L62: -69.2586264 | M62: 9.729329683 | N62: -69.2586264
A63: 10.2 | B63: 0.1780235837 | C63: =Burmester($B$7:$C$7,$B$8:$C$8,$B$9:$C$9,$E$7,$E$8,$E$9,B63) -> 6.097036851 | D63: 0.4386310024 | E63: =ThreePosition_Basic2($E$7,$E$9,$B$7:$C$7,$B$9:$C$9,B63,C63) -> -5.295320194 | F63: -9.472394364 | G63: 61.97703737 | H63: 75.70765227 | I63: =ThreePosition_Basic2($E$7,$E$9,$B$7:$C$7,$B$9:$C$9,B63,D63) -> 11.19203685 | J63: -6.371867545 | K63: 9.872485597 | L63: -68.62583891 | M63: 9.872485597 | N63: -68.62583891
A64: 10.4 | B64: 0.1815142422 | C64: =Burmester($B$7:$C$7,$B$8:$C$8,$B$9:$C$9,$E$7,$E$8,$E$9,B64) -> 6.094743594 | D64: 0.4428041036 | E64: =ThreePosition_Basic2($E$7,$E$9,$B$7:$C$7,$B$9:$C$9,B64,C64) -> -5.360696405 | F64: -9.452194511 | G64: 61.28576237 | H64: 74.37152332 | I64: =ThreePosition_Basic2($E$7,$E$9,$B$7:$C$7,$B$9:$C$9,B64,D64) -> 11.23508673 | J64: -6.318110116 | K64: 10.0104771 | L64: -68.00631882 | M64: 10.0104771 | N64: -68.00631882
A65: 10.6 | B65: 0.1850049007 | C65: =Burmester($B$7:$C$7,$B$8:$C$8,$B$9:$C$9,$E$7,$E$8,$E$9,B65) -> 6.092467882 | D65: 0.4469576623 | E65: =ThreePosition_Basic2($E$7,$E$9,$B$7:$C$7,$B$9:$C$9,B65,C65) -> -5.425306538 | F65: -9.432194712 | G65: 60.61445991 | H65: 73.07975809 | I65: =ThreePosition_Basic2($E$7,$E$9,$B$7:$C$7,$B$9:$C$9,B65,D65) -> 11.27719726 | J65: -6.264802789 | K65: 10.14351672 | L65: -67.3995816 | M65: 10.14351672 | N65: -67.3995816
A66: 10.8 | B66: 0.1884955592 | C66: =Burmester($B$7:$C$7,$B$8:$C$8,$B$9:$C$9,$E$7,$E$8,$E$9,B66) -> 6.090209143 | D66: 0.4510922374 | E66: =ThreePosition_Basic2($E$7,$E$9,$B$7:$C$7,$B$9:$C$9,B66,C66) -> -5.489174556 | F66: -9.412393696 | G66: 59.96214916 | H66: 71.83007892 | I66: =ThreePosition_Basic2($E$7,$E$9,$B$7:$C$7,$B$9:$C$9,B66,D66) -> 11.31839484 | J66: -6.211939438 | K66: 10.27180547 | L66: -66.80516851 | M66: 10.27180547 | N66: -66.80516851
A67: 11 | B67: 0.1919862177 | C67: =Burmester($B$7:$C$7,$B$8:$C$8,$B$9:$C$9,$E$7,$E$8,$E$9,B67) -> 6.087966833 | D67: 0.4552083627 | E67: =ThreePosition_Basic2($E$7,$E$9,$B$7:$C$7,$B$9:$C$9,B67,C67) -> -5.552323414 | F67: -9.392790165 | G67: 59.32791606 | H67: 70.62036559 | I67: =ThreePosition_Basic2($E$7,$E$9,$B$7:$C$7,$B$9:$C$9,B67,D67) -> 11.35870482 | J67: -6.159514078 | K67: 10.39553364 | L67: -66.22264477 | M67: 10.39553364 | N67: -66.22264477
A68: 11.2 | B68: 0.1954768762 | C68: =Burmester($B$7:$C$7,$B$8:$C$8,$B$9:$C$9,$E$7,$E$8,$E$9,B68) -> 6.085740431 | D68: 0.459306548 | E68: =ThreePosition_Basic2($E$7,$E$9,$B$7:$C$7,$B$9:$C$9,B68,C68) -> -5.61477512 | F68: -9.373382796 | G68: 58.71090751 | H68: 69.44864174 | I68: =ThreePosition_Basic2($E$7,$E$9,$B$7:$C$7,$B$9:$C$9,B68,D68) -> 11.39815152 | J68: -6.107520865 | K68: 10.5148815 | L68: -65.65159794 | M68: 10.5148815 | N68: -65.65159794
A69: 11.4 | B69: 0.1989675347 | C69: =Burmester($B$7:$C$7,$B$8:$C$8,$B$9:$C$9,$E$7,$E$8,$E$9,B69) -> 6.083529436 | D69: 0.4633872811 | E69: =ThreePosition_Basic2($E$7,$E$9,$B$7:$C$7,$B$9:$C$9,B69,C69) -> -5.676550785 | F69: -9.354170249 | G69: 58.11032636 | H69: 68.31306269 | I69: =ThreePosition_Basic2($E$7,$E$9,$B$7:$C$7,$B$9:$C$9,B69,D69) -> 11.4367583 | J69: -6.055954081 | K69: 10.63002002 | L69: -65.09163645 | M69: 10.63002002 | N69: -65.09163645
A70: 11.6 | B70: 0.2024581932 | C70: =Burmester($B$7:$C$7,$B$8:$C$8,$B$9:$C$9,$E$7,$E$8,$E$9,B70) -> 6.081333371 | D70: 0.4674510287 | E70: =ThreePosition_Basic2($E$7,$E$9,$B$7:$C$7,$B$9:$C$9,B70,C70) -> -5.737670677 | F70: -9.335151164 | G70: 57.52542667 | H70: 67.2119045 | I70: =ThreePosition_Basic2($E$7,$E$9,$B$7:$C$7,$B$9:$C$9,B70,D70) -> 11.47454761 | J70: -6.004808138 | K70: 10.74111143 | L70: -64.54238814 | M70: 10.74111143 | N70: -64.54238814
A71: 11.8 | B71: 0.2059488517 | C71: =Burmester($B$7:$C$7,$B$8:$C$8,$B$9:$C$9,$E$7,$E$8,$E$9,B71) -> 6.079151777 | D71: 0.4714982376 | E71: =ThreePosition_Basic2($E$7,$E$9,$B$7:$C$7,$B$9:$C$9,B71,C71) -> -5.798154266 | F71: -9.316324169 | G71: 56.95550963 | H71: 66.14355405 | I71: =ThreePosition_Basic2($E$7,$E$9,$B$7:$C$7,$B$9:$C$9,B71,D71) -> 11.51154105 | J71: -5.954077565 | K71: 10.84830983 | L71: -64.00349906 | M71: 10.84830983 | N71: -64.00349906
A72: 12 | B72: 0.2094395102 | C72: =Burmester($B$7:$C$7,$B$8:$C$8,$B$9:$C$9,$E$7,$E$8,$E$9,B72) -> 6.076984214 | D72: 0.4755293362 | E72: =ThreePosition_Basic2($E$7,$E$9,$B$7:$C$7,$B$9:$C$9,B72,C72) -> -5.858020269 | F72: -9.297687883 | G72: 56.39991977 | H72: 65.10650016 | I72: =ThreePosition_Basic2($E$7,$E$9,$B$7:$C$7,$B$9:$C$9,B72,D72) -> 11.54775939 | J72: -5.903757011 | K72: 10.95176168 | L72: -63.4746323 | M72: =(M71+M73)/2 -> 10.94995806 | N72: =(N71+N73)/2 -> -63.47948297
A73: 12.2 | B73: 0.2129301687 | C73: =Burmester($B$7:$C$7,$B$8:$C$8,$B$9:$C$9,$E$7,$E$8,$E$9,B73) -> 6.07483026 | D73: 0.4795447349 | E73: =ThreePosition_Basic2($E$7,$E$9,$B$7:$C$7,$B$9:$C$9,B73,C73) -> -5.917286685 | F73: -9.279240916 | G73: 55.85804157 | H73: 64.09932556 | I73: =ThreePosition_Basic2($E$7,$E$9,$B$7:$C$7,$B$9:$C$9,B73,D73) -> 11.58322263 | J73: -5.853841233 | K73: 11.05160629 | L73: -62.95546688 | M73: 11.05160629 | N73: -62.95546688
A74: 12.4 | B74: 0.2164208272 | C74: =Burmester($B$7:$C$7,$B$8:$C$8,$B$9:$C$9,$E$7,$E$8,$E$9,B74) -> 6.072689509 | D74: 0.4835448278 | E74: =ThreePosition_Basic2($E$7,$E$9,$B$7:$C$7,$B$9:$C$9,B74,C74) -> -5.975970841 | F74: -9.26098187 | G74: 55.32929636 | H74: 63.12069953 | I74: =ThreePosition_Basic2($E$7,$E$9,$B$7:$C$7,$B$9:$C$9,B74,D74) -> 11.61795006 | J74: -5.804325096 | K74: 11.14797627 | L74: -62.44569679 | M74: 11.14797627 | N74: -62.44569679
A75: 12.6 | B75: 0.2199114858 | C75: =Burmester($B$7:$C$7,$B$8:$C$8,$B$9:$C$9,$E$7,$E$8,$E$9,B75) -> 6.07056157 | D75: 0.487529993 | E75: =ThreePosition_Basic2($E$7,$E$9,$B$7:$C$7,$B$9:$C$9,B75,C75) -> -6.03408942 | F75: -9.242909347 | G75: 54.81313956 | H75: 62.16937134 | I75: =ThreePosition_Basic2($E$7,$E$9,$B$7:$C$7,$B$9:$C$9,B75,D75) -> 11.65196023 | J75: -5.755203571 | K75: 11.24099795 | L75: -61.94503007 | M75: 11.24099795 | N75: -61.94503007
A76: 12.8 | B76: 0.2234021443 | C76: =Burmester($B$7:$C$7,$B$8:$C$8,$B$9:$C$9,$E$7,$E$8,$E$9,B76) -> 6.06844607 | D76: 0.4915005936 | E76: =ThreePosition_Basic2($E$7,$E$9,$B$7:$C$7,$B$9:$C$9,B76,C76) -> -6.091658499 | F76: -9.225021944 | G76: 54.30905811 | H76: 61.24416423 | I76: =ThreePosition_Basic2($E$7,$E$9,$B$7:$C$7,$B$9:$C$9,B76,D76) -> 11.68527107 | J76: -5.706471726 | K76: 11.33079172 | L76: -61.45318794 | M76: 11.33079172 | N76: -61.45318794
A77: 13 | B77: =A77*PI()/180 -> 0.2268928028 | C77: =Burmester($B$7:$C$7,$B$8:$C$8,$B$9:$C$9,$E$7,$E$8,$E$9,B77) -> 6.066342646 | D77: 0.4954569788 | E77: =ThreePosition_Basic2($E$7,$E$9,$B$7:$C$7,$B$9:$C$9,B77,C77) -> -6.148693575 | F77: -9.207318261 | G77: 53.81656817 | H77: 60.34396988 | I77: =ThreePosition_Basic2($E$7,$E$9,$B$7:$C$7,$B$9:$C$9,B77,D77) -> 11.71789984 | J77: -5.658124726 | K77: 11.4174724 | L77: -60.96990406 | M77: =K77 -> 11.4174724 | N77: =L77 -> -60.96990406
A78: 13.2 | B78: 0.2303834613 | C78: =Burmester($B$7:$C$7,$B$8:$C$8,$B$9:$C$9,$E$7,$E$8,$E$9,B78) -> 6.064250951 | D78: 0.4993994841 | E78: =ThreePosition_Basic2($E$7,$E$9,$B$7:$C$7,$B$9:$C$9,B78,C78) -> -6.205209597 | F78: -9.189796897 | G78: 53.33521298 | H78: 59.4677435 | I78: =ThreePosition_Basic2($E$7,$E$9,$B$7:$C$7,$B$9:$C$9,B78,D78) -> 11.74986322 | J78: -5.610157829 | K78: 11.50114959 | L78: -60.49492376 | M78: 11.50114959 | N78: -60.49492376
A79: 13.4 | B79: 0.2338741198 | C79: =Burmester($B$7:$C$7,$B$8:$C$8,$B$9:$C$9,$E$7,$E$8,$E$9,B79) -> 6.062170651 | D79: 0.5033284325 | E79: =ThreePosition_Basic2($E$7,$E$9,$B$7:$C$7,$B$9:$C$9,B79,C79) -> -6.261220994 | F79: -9.172456455 | G79: 52.86456101 | H79: 58.61449919 | I79: =ThreePosition_Basic2($E$7,$E$9,$B$7:$C$7,$B$9:$C$9,B79,D79) -> 11.78117731 | J79: -5.562566385 | K79: 11.58192795 | L79: -60.02800339 | M79: 11.58192795 | N79: -60.02800339
A80: 13.6 | B80: 0.2373647783 | C80: =Burmester($B$7:$C$7,$B$8:$C$8,$B$9:$C$9,$E$7,$E$8,$E$9,B80) -> 6.060101422 | D80: 0.5072441348 | E80: =ThreePosition_Basic2($E$7,$E$9,$B$7:$C$7,$B$9:$C$9,B80,C80) -> -6.316741696 | F80: -9.155295544 | G80: 52.4042041 | H80: 57.78330585 | I80: =ThreePosition_Basic2($E$7,$E$9,$B$7:$C$7,$B$9:$C$9,B80,D80) -> 11.81185768 | J80: -5.515345829 | K80: 11.65990746 | L80: -59.56890969 | M80: 11.65990746 | N80: -59.56890969
A81: 13.8 | B81: 0.2408554368 | C81: =Burmester($B$7:$C$7,$B$8:$C$8,$B$9:$C$9,$E$7,$E$8,$E$9,B81) -> 6.058042953 | D81: 0.5111468903 | E81: =ThreePosition_Basic2($E$7,$E$9,$B$7:$C$7,$B$9:$C$9,B81,C81) -> -6.371785161 | F81: -9.138312774 | G81: 51.95375592 | H81: 56.97328333 | I81: =ThreePosition_Basic2($E$7,$E$9,$B$7:$C$7,$B$9:$C$9,B81,D81) -> 11.84191935 | J81: -5.468491681 | K81: 11.73518374 | L81: -59.11741921 | M81: 11.73518374 | N81: -59.11741921
A82: 14 | B82: 0.2443460953 | C82: =Burmester($B$7:$C$7,$B$8:$C$8,$B$9:$C$9,$E$7,$E$8,$E$9,B82) -> 6.055994944 | D82: 0.5150369872 | E82: =ThreePosition_Basic2($E$7,$E$9,$B$7:$C$7,$B$9:$C$9,B82,C82) -> -6.426364397 | F82: -9.121506766 | G82: 51.51285045 | H82: 56.18359891 | I82: =ThreePosition_Basic2($E$7,$E$9,$B$7:$C$7,$B$9:$C$9,B82,D82) -> 11.87137686 | J82: -5.421999542 | K82: 11.80784822 | L82: -58.67331776 | M82: 11.80784822 | N82: -58.67331776
A83: 14.2 | B83: 0.2478367538 | C83: =Burmester($B$7:$C$7,$B$8:$C$8,$B$9:$C$9,$E$7,$E$8,$E$9,B83) -> 6.053957103 | D83: 0.5189147037 | E83: =ThreePosition_Basic2($E$7,$E$9,$B$7:$C$7,$B$9:$C$9,B83,C83) -> -6.480491981 | F83: -9.104876145 | G83: 51.08114062 | H83: 55.41346416 | I83: =ThreePosition_Basic2($E$7,$E$9,$B$7:$C$7,$B$9:$C$9,B83,D83) -> 11.90024428 | J83: -5.375865095 | K83: 11.87798844 | L83: -58.23639991 | M83: 11.87798844 | N83: -58.23639991
A84: 14.4 | B84: 0.2513274123 | C84: =Burmester($B$7:$C$7,$B$8:$C$8,$B$9:$C$9,$E$7,$E$8,$E$9,B84) -> 6.051929152 | D84: 0.5227803076 | E84: =ThreePosition_Basic2($E$7,$E$9,$B$7:$C$7,$B$9:$C$9,B84,C84) -> -6.534180084 | F84: -9.088419547 | G84: 50.6582971 | H84: 54.66213192 | I84: =ThreePosition_Basic2($E$7,$E$9,$B$7:$C$7,$B$9:$C$9,B84,D84) -> 11.9285352 | J84: -5.330084096 | K84: 11.94568821 | L84: -57.80646852 | M84: 11.94568821 | N84: -57.80646852
A85: 14.6 | B85: 0.2548180708 | C85: =Burmester($B$7:$C$7,$B$8:$C$8,$B$9:$C$9,$E$7,$E$8,$E$9,B85) -> 6.049910819 | D85: 0.5266340575 | E85: =ThreePosition_Basic2($E$7,$E$9,$B$7:$C$7,$B$9:$C$9,B85,C85) -> -6.587440481 | F85: -9.072135615 | G85: 50.24400711 | H85: 53.92889362 | I85: =ThreePosition_Basic2($E$7,$E$9,$B$7:$C$7,$B$9:$C$9,B85,D85) -> 11.9562628 | J85: -5.28465238 | K85: 12.01102783 | L85: -57.38333428 | M85: 12.01102783 | N85: -57.38333428
A86: 14.8 | B86: 0.2583087293 | C86: =Burmester($B$7:$C$7,$B$8:$C$8,$B$9:$C$9,$E$7,$E$8,$E$9,B86) -> 6.047901841 | D86: 0.5304762031 | E86: =ThreePosition_Basic2($E$7,$E$9,$B$7:$C$7,$B$9:$C$9,B86,C86) -> -6.640284577 | F86: -9.056023002 | G86: 49.83797335 | H86: 53.21307679 | I86: =ThreePosition_Basic2($E$7,$E$9,$B$7:$C$7,$B$9:$C$9,B86,D86) -> 11.98343982 | J86: -5.239565851 | K86: 12.07408426 | L86: -56.96681535 | M86: 12.07408426 | N86: -56.96681535
A87: 15 | B87: 0.2617993878 | C87: =Burmester($B$7:$C$7,$B$8:$C$8,$B$9:$C$9,$E$7,$E$8,$E$9,B87) -> 6.045901967 | D87: 0.5343069852 | E87: =ThreePosition_Basic2($E$7,$E$9,$B$7:$C$7,$B$9:$C$9,B87,C87) -> -6.69272342 | F87: -9.040080372 | G87: 49.43991307 | H87: 52.51404272 | I87: =ThreePosition_Basic2($E$7,$E$9,$B$7:$C$7,$B$9:$C$9,B87,D87) -> 12.01007862 | J87: -5.194820486 | K87: 12.13493132 | L87: -56.5567369 | M87: 12.13493132 | N87: -56.5567369
A88: 15.2 | B88: 0.2652900463 | C88: =Burmester($B$7:$C$7,$B$8:$C$8,$B$9:$C$9,$E$7,$E$8,$E$9,B88) -> 6.04391095 | D88: 0.5381266366 | E88: =ThreePosition_Basic2($E$7,$E$9,$B$7:$C$7,$B$9:$C$9,B88,C88) -> -6.744767714 | F88: -9.0243064 | G88: 49.04955712 | H88: 51.83118436 | I88: =ThreePosition_Basic2($E$7,$E$9,$B$7:$C$7,$B$9:$C$9,B88,D88) -> 12.03619118 | J88: -5.15041233 | K88: 12.19363982 | L88: -56.15293084 | M88: 12.19363982 | N88: -56.15293084
A89: 15.4 | B89: 0.2687807048 | C89: =Burmester($B$7:$C$7,$B$8:$C$8,$B$9:$C$9,$E$7,$E$8,$E$9,B89) -> 6.041928553 | D89: 0.5419353822 | E89: =ThreePosition_Basic2($E$7,$E$9,$B$7:$C$7,$B$9:$C$9,B89,C89) -> -6.79642784 | F89: -9.008699771 | G89: 48.66664914 | H89: 51.16392434 | I89: =ThreePosition_Basic2($E$7,$E$9,$B$7:$C$7,$B$9:$C$9,B89,D89) -> 12.06178909 | J89: -5.106337495 | K89: 12.25027775 | L89: -55.7552354 | M89: 12.25027775 | N89: -55.7552354
A90: 15.6 | B90: 0.2722713633 | C90: =Burmester($B$7:$C$7,$B$8:$C$8,$B$9:$C$9,$E$7,$E$8,$E$9,B90) -> 6.039954547 | D90: 0.5457334394 | E90: =ThreePosition_Basic2($E$7,$E$9,$B$7:$C$7,$B$9:$C$9,B90,C90) -> -6.847713865 | F90: -8.993259183 | G90: 48.29094476 | H90: 50.51171314 | I90: =ThreePosition_Basic2($E$7,$E$9,$B$7:$C$7,$B$9:$C$9,B90,D90) -> 12.0868836 | J90: -5.062592157 | K90: 12.30491039 | L90: -55.36349484 | M90: 12.30491039 | N90: -55.36349484
A91: 15.8 | B91: 0.2757620218 | C91: =Burmester($B$7:$C$7,$B$8:$C$8,$B$9:$C$9,$E$7,$E$8,$E$9,B91) -> 6.037988708 | D91: 0.5495210184 | E91: =ThreePosition_Basic2($E$7,$E$9,$B$7:$C$7,$B$9:$C$9,B91,C91) -> -6.898635557 | F91: -8.977983346 | G91: 47.92221091 | H91: 49.87402742 | I91: =ThreePosition_Basic2($E$7,$E$9,$B$7:$C$7,$B$9:$C$9,B91,D91) -> 12.11148563 | J91: -5.019172557 | K91: 12.35760044 | L91: -54.9775592 | M91: 12.35760044 | N91: -54.9775592
A92: 16 | B92: 0.2792526803 | C92: =Burmester($B$7:$C$7,$B$8:$C$8,$B$9:$C$9,$E$7,$E$8,$E$9,B92) -> 6.03603082 | D92: 0.5532983226 | E92: =ThreePosition_Basic2($E$7,$E$9,$B$7:$C$7,$B$9:$C$9,B92,C92) -> -6.949202396 | F92: -8.962870982 | G92: 47.56022514 | H92: 49.25036843 | I92: =ThreePosition_Basic2($E$7,$E$9,$B$7:$C$7,$B$9:$C$9,B92,D92) -> 12.13560576 | J92: -4.976074996 | K92: 12.40840818 | L92: -54.59728396 | M92: 12.40840818 | N92: -54.59728396
A93: 16.2 | B93: 0.2827433388 | C93: =Burmester($B$7:$C$7,$B$8:$C$8,$B$9:$C$9,$E$7,$E$8,$E$9,B93) -> 6.034080674 | D93: 0.5570655487 | E93: =ThreePosition_Basic2($E$7,$E$9,$B$7:$C$7,$B$9:$C$9,B93,C93) -> -6.99942359 | F93: -8.947920826 | G93: 47.20477501 | H93: 48.64026059 | I93: =ThreePosition_Basic2($E$7,$E$9,$B$7:$C$7,$B$9:$C$9,B93,D93) -> 12.15925428 | J93: -4.933295838 | K93: 12.45739156 | L93: -54.22252979 | M93: 12.45739156 | N93: -54.22252979
A94: 16.4 | B94: 0.2862339973 | C94: =Burmester($B$7:$C$7,$B$8:$C$8,$B$9:$C$9,$E$7,$E$8,$E$9,B94) -> 6.032138066 | D94: 0.5608228872 | E94: =ThreePosition_Basic2($E$7,$E$9,$B$7:$C$7,$B$9:$C$9,B94,C94) -> -7.049308082 | F94: -8.933131627 | G94: 46.85565749 | H94: 48.0432501 | I94: =ThreePosition_Basic2($E$7,$E$9,$B$7:$C$7,$B$9:$C$9,B94,D94) -> 12.18244114 | J94: -4.890831503 | K94: 12.50460633 | L94: -53.85316232 | M94: 12.50460633 | N94: -53.85316232
A95: 16.6 | B95: 0.2897246558 | C95: =Burmester($B$7:$C$7,$B$8:$C$8,$B$9:$C$9,$E$7,$E$8,$E$9,B95) -> 6.0302028 | D95: 0.5645705226 | E95: =ThreePosition_Basic2($E$7,$E$9,$B$7:$C$7,$B$9:$C$9,B95,C95) -> -7.098864563 | F95: -8.918502146 | G95: 46.51267844 | H95: 47.45890372 | I95: =ThreePosition_Basic2($E$7,$E$9,$B$7:$C$7,$B$9:$C$9,B95,D95) -> 12.20517606 | J95: -4.84867847 | K95: 12.55010613 | L95: -53.48905192 | M95: 12.55010613 | N95: -53.48905192
A96: 16.8 | B96: 0.2932153143 | C96: =Burmester($B$7:$C$7,$B$8:$C$8,$B$9:$C$9,$E$7,$E$8,$E$9,B96) -> 6.028274683 | D96: 0.5683086335 | E96: =ThreePosition_Basic2($E$7,$E$9,$B$7:$C$7,$B$9:$C$9,B96,C96) -> -7.14810148 | F96: -8.904031158 | G96: 46.17565215 | H96: 46.88680757 | I96: =ThreePosition_Basic2($E$7,$E$9,$B$7:$C$7,$B$9:$C$9,B96,D96) -> 12.22746843 | J96: -4.806833273 | K96: 12.5939426 | L96: -53.13007345 | M96: 12.5939426 | N96: -53.13007345
A97: 17 | B97: 0.2967059728 | C97: =Burmester($B$7:$C$7,$B$8:$C$8,$B$9:$C$9,$E$7,$E$8,$E$9,B97) -> 6.02635353 | D97: 0.572037393 | E97: =ThreePosition_Basic2($E$7,$E$9,$B$7:$C$7,$B$9:$C$9,B97,C97) -> -7.197027049 | F97: -8.889717452 | G97: 45.84440079 | H97: 46.32656606 | I97: =ThreePosition_Basic2($E$7,$E$9,$B$7:$C$7,$B$9:$C$9,B97,D97) -> 12.24932739 | J97: -4.765292501 | K97: 12.63616545 | L97: -52.77610605 | M97: 12.63616545 | N97: -52.77610605
A98: 17.2 | B98: 0.3001966313 | C98: =Burmester($B$7:$C$7,$B$8:$C$8,$B$9:$C$9,$E$7,$E$8,$E$9,B98) -> 6.02443916 | D98: 0.575756969 | E98: =ThreePosition_Basic2($E$7,$E$9,$B$7:$C$7,$B$9:$C$9,B98,C98) -> -7.24564926 | F98: -8.87555983 | G98: 45.51875407 | H98: 45.77780089 | I98: =ThreePosition_Basic2($E$7,$E$9,$B$7:$C$7,$B$9:$C$9,B98,D98) -> 12.27076184 | J98: -4.724052796 | K98: 12.67682258 | L98: -52.42703299 | M98: 12.67682258 | N98: -52.42703299
A99: 17.4 | B99: 0.3036872898 | C99: =Burmester($B$7:$C$7,$B$8:$C$8,$B$9:$C$9,$E$7,$E$8,$E$9,B99) -> 6.022531398 | D99: 0.579467524 | E99: =ThreePosition_Basic2($E$7,$E$9,$B$7:$C$7,$B$9:$C$9,B99,C99) -> -7.293975891 | F99: -8.861557111 | G99: 45.19854875 | H99: 45.24015006 | I99: =ThreePosition_Basic2($E$7,$E$9,$B$7:$C$7,$B$9:$C$9,B99,D99) -> 12.29178041 | J99: -4.683110853 | K99: 12.71596015 | L99: -52.08274145 | M99: 12.71596015 | N99: -52.08274145
A100: 17.6 | B100: 0.3071779484 | C100: =Burmester($B$7:$C$7,$B$8:$C$8,$B$9:$C$9,$E$7,$E$8,$E$9,B100) -> 6.020630072 | D100: 0.5831692159 | E100: =ThreePosition_Basic2($E$7,$E$9,$B$7:$C$7,$B$9:$C$9,B100,C100) -> -7.342014512 | F100: -8.847708123 | G100: 44.88362834 | H100: 44.71326701 | I100: =ThreePosition_Basic2($E$7,$E$9,$B$7:$C$7,$B$9:$C$9,B100,D100) -> 12.3123915 | J100: -4.642463418 | K100: 12.75362265 | L100: -51.74312235 | M100: 12.75362265 | N100: -51.74312235
A101: 17.8 | B101: 0.3106686069 | C101: =Burmester($B$7:$C$7,$B$8:$C$8,$B$9:$C$9,$E$7,$E$8,$E$9,B101) -> 6.018735016 | D101: 0.5868621976 | E101: =ThreePosition_Basic2($E$7,$E$9,$B$7:$C$7,$B$9:$C$9,B101,C101) -> -7.389772493 | F101: -8.834011713 | G101: 44.57384267 | H101: 44.1968198 | I101: =ThreePosition_Basic2($E$7,$E$9,$B$7:$C$7,$B$9:$C$9,B101,D101) -> 12.33260329 | J101: -4.602107286 | K101: 12.78985298 | L101: -51.40807018 | M101: 12.78985298 | N101: -51.40807018
A102: 18 | B102: 0.3141592654 | C102: =Burmester($B$7:$C$7,$B$8:$C$8,$B$9:$C$9,$E$7,$E$8,$E$9,B102) -> 6.016846068 | D102: 0.5905466177 | E102: =ThreePosition_Basic2($E$7,$E$9,$B$7:$C$7,$B$9:$C$9,B102,C102) -> -7.437257014 | F102: -8.820466738 | G102: 44.26904764 | H102: 43.69049031 | I102: =ThreePosition_Basic2($E$7,$E$9,$B$7:$C$7,$B$9:$C$9,B102,D102) -> 12.35242372 | J102: -4.5620393 | K102: 12.82469253 | L102: -51.07748289 | M102: 12.82469253 | N102: -51.07748289
A103: 18.2 | B103: 0.3176499239 | C103: =Burmester($B$7:$C$7,$B$8:$C$8,$B$9:$C$9,$E$7,$E$8,$E$9,B103) -> 6.014963072 | D103: 0.5942226202 | E103: =ThreePosition_Basic2($E$7,$E$9,$B$7:$C$7,$B$9:$C$9,B103,C103) -> -7.484475072 | F103: -8.807072074 | G103: 43.96910483 | H103: 43.19397354 | I103: =ThreePosition_Basic2($E$7,$E$9,$B$7:$C$7,$B$9:$C$9,B103,D103) -> 12.37186051 | J103: -4.522256354 | K103: 12.85818124 | L103: -50.75126168 | M103: 12.85818124 | N103: -50.75126168
A104: 18.4 | B104: 0.3211405824 | C104: =Burmester($B$7:$C$7,$B$8:$C$8,$B$9:$C$9,$E$7,$E$8,$E$9,B104) -> 6.013085874 | D104: 0.597890345 | E104: =ThreePosition_Basic2($E$7,$E$9,$B$7:$C$7,$B$9:$C$9,B104,C104) -> -7.531433486 | F104: -8.793826606 | G104: 43.67388126 | H104: 42.70697691 | I104: =ThreePosition_Basic2($E$7,$E$9,$B$7:$C$7,$B$9:$C$9,B104,D104) -> 12.39092121 | J104: -4.482755384 | K104: 12.89035764 | L104: -50.42931091 | M104: 12.89035764 | N104: -50.42931091
A105: 18.6 | B105: 0.3246312409 | C105: =Burmester($B$7:$C$7,$B$8:$C$8,$B$9:$C$9,$E$7,$E$8,$E$9,B105) -> 6.011214325 | D105: 0.6015499281 | E105: =ThreePosition_Basic2($E$7,$E$9,$B$7:$C$7,$B$9:$C$9,B105,C105) -> -7.578138904 | F105: -8.780729238 | G105: 43.3832491 | H105: 42.22921963 | I105: =ThreePosition_Basic2($E$7,$E$9,$B$7:$C$7,$B$9:$C$9,B105,D105) -> 12.40961314 | J105: -4.443533376 | K105: 12.92125895 | L105: -50.11153793 | M105: 12.92125895 | N105: -50.11153793
A106: 18.8 | B106: 0.3281218994 | C106: =Burmester($B$7:$C$7,$B$8:$C$8,$B$9:$C$9,$E$7,$E$8,$E$9,B106) -> 6.009348279 | D106: 0.6052015012 | E106: =ThreePosition_Basic2($E$7,$E$9,$B$7:$C$7,$B$9:$C$9,B106,C106) -> -7.624597811 | F106: -8.767778885 | G106: 43.09708542 | H106: 41.76043213 | I106: =ThreePosition_Basic2($E$7,$E$9,$B$7:$C$7,$B$9:$C$9,B106,D106) -> 12.42794343 | J106: -4.404587358 | K106: 12.95092111 | L106: -49.797853 | M106: 12.95092111 | N106: -49.797853
A107: 19 | B107: 0.3316125579 | C107: =Burmester($B$7:$C$7,$B$8:$C$8,$B$9:$C$9,$E$7,$E$8,$E$9,B107) -> 6.007487595 | D107: 0.6088451928 | E107: =ThreePosition_Basic2($E$7,$E$9,$B$7:$C$7,$B$9:$C$9,B107,C107) -> -7.670816531 | F107: -8.754974479 | G107: 42.81527194 | H107: 41.30035544 | I107: =ThreePosition_Basic2($E$7,$E$9,$B$7:$C$7,$B$9:$C$9,B107,D107) -> 12.44591904 | J107: -4.365914403 | K107: 12.97937883 | L107: -49.48816912 | M107: 12.97937883 | N107: -49.48816912
A108: 19.2 | B108: 0.3351032164 | C108: =Burmester($B$7:$C$7,$B$8:$C$8,$B$9:$C$9,$E$7,$E$8,$E$9,B108) -> 6.005632135 | D108: 0.6124811272 | E108: =ThreePosition_Basic2($E$7,$E$9,$B$7:$C$7,$B$9:$C$9,B108,C108) -> -7.716801239 | F108: -8.742314963 | G108: 42.53769481 | H108: 40.84874071 | I108: =ThreePosition_Basic2($E$7,$E$9,$B$7:$C$7,$B$9:$C$9,B108,D108) -> 12.46354672 | J108: -4.327511625 | K108: 13.00666568 | L108: -49.18240195 | M108: 13.00666568 | N108: -49.18240195
A109: 19.4 | B109: 0.3385938749 | C109: =Burmester($B$7:$C$7,$B$8:$C$8,$B$9:$C$9,$E$7,$E$8,$E$9,B109) -> 6.003781764 | D109: 0.6161094257 | E109: =ThreePosition_Basic2($E$7,$E$9,$B$7:$C$7,$B$9:$C$9,B109,C109) -> -7.762557961 | F109: -8.729799297 | G109: 42.2642444 | H109: 40.4053487 | I109: =ThreePosition_Basic2($E$7,$E$9,$B$7:$C$7,$B$9:$C$9,B109,D109) -> 12.48083308 | J109: -4.289376184 | K109: 13.03281408 | L109: -48.88046972 | M109: 13.03281408 | N109: -48.88046972
A110: 19.6 | B110: 0.3420845334 | C110: =Burmester($B$7:$C$7,$B$8:$C$8,$B$9:$C$9,$E$7,$E$8,$E$9,B110) -> 6.00193635 | D110: 0.6197302059 | E110: =ThreePosition_Basic2($E$7,$E$9,$B$7:$C$7,$B$9:$C$9,B110,C110) -> -7.808092581 | F110: -8.717426454 | G110: 41.99481508 | H110: 39.9699493 | I110: =ThreePosition_Basic2($E$7,$E$9,$B$7:$C$7,$B$9:$C$9,B110,D110) -> 12.49778455 | J110: -4.251505276 | K110: 13.05785538 | L110: -48.58229308 | M110: 13.05785538 | N110: -48.58229308
A111: 19.8 | B111: 0.3455751919 | C111: =Burmester($B$7:$C$7,$B$8:$C$8,$B$9:$C$9,$E$7,$E$8,$E$9,B111) -> 6.000095766 | D111: 0.6233435824 | E111: =ThreePosition_Basic2($E$7,$E$9,$B$7:$C$7,$B$9:$C$9,B111,C111) -> -7.853410846 | F111: -8.705195422 | G111: 41.72930505 | H111: 39.54232112 | I111: =ThreePosition_Basic2($E$7,$E$9,$B$7:$C$7,$B$9:$C$9,B111,D111) -> 12.51440738 | J111: -4.213896142 | K111: 13.08181992 | L111: -48.28779503 | M111: 13.08181992 | N111: -48.28779503
A112: 20 | B112: 0.3490658504 | C112: =Burmester($B$7:$C$7,$B$8:$C$8,$B$9:$C$9,$E$7,$E$8,$E$9,B112) -> 5.998259887 | D112: 0.6269496663 | E112: =ThreePosition_Basic2($E$7,$E$9,$B$7:$C$7,$B$9:$C$9,B112,C112) -> -7.898518372 | F112: -8.693105201 | G112: 41.46761618 | H112: 39.12225104 | I112: =ThreePosition_Basic2($E$7,$E$9,$B$7:$C$7,$B$9:$C$9,B112,D112) -> 12.53070768 | J112: -4.176546059 | K112: 13.10473702 | L112: -47.99690085 | M112: 13.10473702 | N112: -47.99690085
A113: 20.2 | B113: 0.3525565089 | C113: =Burmester($B$7:$C$7,$B$8:$C$8,$B$9:$C$9,$E$7,$E$8,$E$9,B113) -> 5.99642859 | D113: 0.6305485661 | E113: =ThreePosition_Basic2($E$7,$E$9,$B$7:$C$7,$B$9:$C$9,B113,C113) -> -7.943420647 | F113: -8.681154808 | G113: 41.20965378 | H113: 38.70953384 | I113: =ThreePosition_Basic2($E$7,$E$9,$B$7:$C$7,$B$9:$C$9,B113,D113) -> 12.54669142 | J113: -4.139452345 | K113: 13.12663507 | L113: -47.70953798 | M113: 13.12663507 | N113: -47.70953798
A114: 20.4 | B114: 0.3560471674 | C114: =Burmester($B$7:$C$7,$B$8:$C$8,$B$9:$C$9,$E$7,$E$8,$E$9,B114) -> 5.994601756 | D114: 0.6341403871 | E114: =ThreePosition_Basic2($E$7,$E$9,$B$7:$C$7,$B$9:$C$9,B114,C114) -> -7.988123035 | F114: -8.669343272 | G114: 40.9553265 | H114: 38.30397185 | I114: =ThreePosition_Basic2($E$7,$E$9,$B$7:$C$7,$B$9:$C$9,B114,D114) -> 12.56236438 | J114: -4.102612356 | K114: 13.14754154 | L114: -47.42563592 | M114: 13.14754154 | N114: -47.42563592
A115: 20.6 | B115: 0.3595378259 | C115: =Burmester($B$7:$C$7,$B$8:$C$8,$B$9:$C$9,$E$7,$E$8,$E$9,B115) -> 5.992779268 | D115: 0.6377252319 | E115: =ThreePosition_Basic2($E$7,$E$9,$B$7:$C$7,$B$9:$C$9,B115,C115) -> -8.032630782 | F115: -8.657669637 | G115: 40.70454618 | H115: 37.90537455 | I115: =ThreePosition_Basic2($E$7,$E$9,$B$7:$C$7,$B$9:$C$9,B115,D115) -> 12.57773225 | J115: -4.066023484 | K115: 13.16748303 | L115: -47.14512623 | M115: 13.16748303 | N115: -47.14512623
A116: 20.8 | B116: 0.3630284844 | C116: =Burmester($B$7:$C$7,$B$8:$C$8,$B$9:$C$9,$E$7,$E$8,$E$9,B116) -> 5.990961013 | D116: 0.6413032003 | E116: =ThreePosition_Basic2($E$7,$E$9,$B$7:$C$7,$B$9:$C$9,B116,C116) -> -8.07694902 | F116: -8.646132959 | G116: 40.45722764 | H116: 37.5135583 | I116: =ThreePosition_Basic2($E$7,$E$9,$B$7:$C$7,$B$9:$C$9,B116,D116) -> 12.59280055 | J116: -4.029683158 | K116: 13.18648529 | L116: -46.86794236 | M116: 13.18648529 | N116: -46.86794236
A117: 21 | B117: 0.3665191429 | C117: =Burmester($B$7:$C$7,$B$8:$C$8,$B$9:$C$9,$E$7,$E$8,$E$9,B117) -> 5.98914688 | D117: 0.6448743894 | E117: =ThreePosition_Basic2($E$7,$E$9,$B$7:$C$7,$B$9:$C$9,B117,C117) -> -8.121082767 | F117: -8.634732309 | G117: 40.21328864 | H117: 37.12834597 | I117: =ThreePosition_Basic2($E$7,$E$9,$B$7:$C$7,$B$9:$C$9,B117,D117) -> 12.60757466 | J117: -3.993588843 | K117: 13.20457326 | L117: -46.59401964 | M117: 13.20457326 | N117: -46.59401964
A118: 21.2 | B118: 0.3700098014 | C118: =Burmester($B$7:$C$7,$B$8:$C$8,$B$9:$C$9,$E$7,$E$8,$E$9,B118) -> 5.98733676 | D118: 0.648438894 | E118: =ThreePosition_Basic2($E$7,$E$9,$B$7:$C$7,$B$9:$C$9,B118,C118) -> -8.165036938 | F118: -8.623466772 | G118: 39.97264968 | H118: 36.74956672 | I118: =ThreePosition_Basic2($E$7,$E$9,$B$7:$C$7,$B$9:$C$9,B118,D118) -> 12.62205985 | J118: -3.957738039 | K118: 13.22177111 | L118: -46.32329519 | M118: 13.22177111 | N118: -46.32329519
A119: 21.4 | B119: 0.3735004599 | C119: =Burmester($B$7:$C$7,$B$8:$C$8,$B$9:$C$9,$E$7,$E$8,$E$9,B119) -> 5.985530546 | D119: 0.651996806 | E119: =ThreePosition_Basic2($E$7,$E$9,$B$7:$C$7,$B$9:$C$9,B119,C119) -> -8.208816341 | F119: -8.612335446 | G119: 39.73523391 | H119: 36.37705564 | I119: =ThreePosition_Basic2($E$7,$E$9,$B$7:$C$7,$B$9:$C$9,B119,D119) -> 12.63626126 | J119: -3.922128282 | K119: 13.23810225 | L119: -46.05570786 | M119: 13.23810225 | N119: -46.05570786
A120: 21.6 | B120: 0.3769911184 | C120: =Burmester($B$7:$C$7,$B$8:$C$8,$B$9:$C$9,$E$7,$E$8,$E$9,B120) -> 5.983728135 | D120: 0.6555482154 | E120: =ThreePosition_Basic2($E$7,$E$9,$B$7:$C$7,$B$9:$C$9,B120,C120) -> -8.252425685 | F120: -8.601337442 | G120: 39.50096704 | H120: 36.01065357 | I120: =ThreePosition_Basic2($E$7,$E$9,$B$7:$C$7,$B$9:$C$9,B120,D120) -> 12.6501839 | J120: -3.886757141 | K120: 13.25358936 | L120: -45.79119816 | M120: 13.25358936 | N120: -45.79119816
A121: 21.8 | B121: 0.3804817769 | C121: =Burmester($B$7:$C$7,$B$8:$C$8,$B$9:$C$9,$E$7,$E$8,$E$9,B121) -> 5.981929425 | D121: 0.6590932096 | E121: =ThreePosition_Basic2($E$7,$E$9,$B$7:$C$7,$B$9:$C$9,B121,C121) -> -8.295869582 | F121: -8.590471885 | G121: 39.26977716 | H121: 35.65020676 | I121: =ThreePosition_Basic2($E$7,$E$9,$B$7:$C$7,$B$9:$C$9,B121,D121) -> 12.66383266 | J121: -3.851622216 | K121: 13.26825445 | L121: -45.52970821 | M121: 13.26825445 | N121: -45.52970821
A122: 22 | B122: 0.3839724354 | C122: =Burmester($B$7:$C$7,$B$8:$C$8,$B$9:$C$9,$E$7,$E$8,$E$9,B122) -> 5.980134316 | D122: 0.6626318737 | E122: =ThreePosition_Basic2($E$7,$E$9,$B$7:$C$7,$B$9:$C$9,B122,C122) -> -8.339152551 | F122: -8.579737914 | G122: 39.04159473 | H122: 35.29556673 | I122: =ThreePosition_Basic2($E$7,$E$9,$B$7:$C$7,$B$9:$C$9,B122,D122) -> 12.67721232 | J122: -3.816721145 | K122: 13.28211885 | L122: -45.27118168 | M122: 13.28211885 | N122: -45.27118168
A123: 22.2 | B123: 0.3874630939 | C123: =Burmester($B$7:$C$7,$B$8:$C$8,$B$9:$C$9,$E$7,$E$8,$E$9,B123) -> 5.978342711 | D123: 0.6661642908 | E123: =ThreePosition_Basic2($E$7,$E$9,$B$7:$C$7,$B$9:$C$9,B123,C123) -> -8.382279018 | F123: -8.569134679 | G123: 38.8163524 | H123: 34.94658998 | I123: =ThreePosition_Basic2($E$7,$E$9,$B$7:$C$7,$B$9:$C$9,B123,D123) -> 12.69032756 | J123: -3.782051592 | K123: 13.29520323 | L123: -45.01556371 | M123: 13.29520323 | N123: -45.01556371
A124: 22.4 | B124: 0.3909537524 | C124: =Burmester($B$7:$C$7,$B$8:$C$8,$B$9:$C$9,$E$7,$E$8,$E$9,B124) -> 5.976554515 | D124: 0.6696905418 | E124: =ThreePosition_Basic2($E$7,$E$9,$B$7:$C$7,$B$9:$C$9,B124,C124) -> -8.425253325 | F124: -8.558661346 | G124: 38.59398497 | H124: 34.6031378 | I124: =ThreePosition_Basic2($E$7,$E$9,$B$7:$C$7,$B$9:$C$9,B124,D124) -> 12.70318293 | J124: -3.747611258 | K124: 13.30752767 | L124: -44.76280093 | M124: 13.30752767 | N124: -44.76280093
A125: 22.6 | B125: 0.394444411 | C125: =Burmester($B$7:$C$7,$B$8:$C$8,$B$9:$C$9,$E$7,$E$8,$E$9,B125) -> 5.974769633 | D125: 0.6732107055 | E125: =ThreePosition_Basic2($E$7,$E$9,$B$7:$C$7,$B$9:$C$9,B125,C125) -> -8.468079725 | F125: -8.548317091 | G125: 38.3744293 | H125: 34.26507605 | I125: =ThreePosition_Basic2($E$7,$E$9,$B$7:$C$7,$B$9:$C$9,B125,D125) -> 12.71578289 | J125: -3.713397871 | K125: 13.31911162 | L125: -44.51284131 | M125: 13.31911162 | N125: -44.51284131
A126: 22.8 | B126: 0.3979350695 | C126: =Burmester($B$7:$C$7,$B$8:$C$8,$B$9:$C$9,$E$7,$E$8,$E$9,B126) -> 5.972987975 | D126: 0.676724859 | E126: =ThreePosition_Basic2($E$7,$E$9,$B$7:$C$7,$B$9:$C$9,B126,C126) -> -8.510762391 | F126: -8.538101104 | G126: 38.15762419 | H126: 33.93227503 | I126: =ThreePosition_Basic2($E$7,$E$9,$B$7:$C$7,$B$9:$C$9,B126,D126) -> 12.72813179 | J126: -3.679409192 | K126: 13.32997397 | L126: -44.2656342 | M126: 13.32997397 | N126: -44.2656342
A127: 23 | B127: 0.401425728 | C127: =Burmester($B$7:$C$7,$B$8:$C$8,$B$9:$C$9,$E$7,$E$8,$E$9,B127) -> 5.971209451 | D127: 0.6802330772 | E127: =ThreePosition_Basic2($E$7,$E$9,$B$7:$C$7,$B$9:$C$9,B127,C127) -> -8.553305418 | F127: -8.528012588 | G127: 37.94351034 | H127: 33.6046092 | I127: =ThreePosition_Basic2($E$7,$E$9,$B$7:$C$7,$B$9:$C$9,B127,D127) -> 12.74023388 | J127: -3.64564301 | K127: 13.34013307 | L127: -44.02113024 | M127: 13.34013307 | N127: -44.02113024
A128: 23.2 | B128: 0.4049163865 | C128: =Burmester($B$7:$C$7,$B$8:$C$8,$B$9:$C$9,$E$7,$E$8,$E$9,B128) -> 5.969433973 | D128: 0.6837354332 | E128: =ThreePosition_Basic2($E$7,$E$9,$B$7:$C$7,$B$9:$C$9,B128,C128) -> -8.59571282 | F128: -8.518050759 | G128: 37.73203025 | H128: 33.28195711 | I128: =ThreePosition_Basic2($E$7,$E$9,$B$7:$C$7,$B$9:$C$9,B128,D128) -> 12.75209334 | J128: -3.612097144 | K128: 13.34960669 | L128: -43.7792813 | M128: 13.34960669 | N128: -43.7792813
A129: 23.4 | B129: 0.408407045 | C129: =Burmester($B$7:$C$7,$B$8:$C$8,$B$9:$C$9,$E$7,$E$8,$E$9,B129) -> 5.967661455 | D129: 0.6872319984 | E129: =ThreePosition_Basic2($E$7,$E$9,$B$7:$C$7,$B$9:$C$9,B129,C129) -> -8.63798854 | F129: -8.508214845 | G129: 37.52312817 | H129: 32.96420116 | I129: =ThreePosition_Basic2($E$7,$E$9,$B$7:$C$7,$B$9:$C$9,B129,D129) -> 12.7637142 | J129: -3.578769444 | K129: 13.35841212 | L129: -43.54004051 | M129: 13.35841212 | N129: -43.54004051
A130: 23.6 | B130: 0.4118977035 | C130: =Burmester($B$7:$C$7,$B$8:$C$8,$B$9:$C$9,$E$7,$E$8,$E$9,B130) -> 5.965891813 | D130: 0.6907228423 | E130: =ThreePosition_Basic2($E$7,$E$9,$B$7:$C$7,$B$9:$C$9,B130,C130) -> -8.680136446 | F130: -8.498504087 | G130: 37.31675002 | H130: 32.65122748 | I130: =ThreePosition_Basic2($E$7,$E$9,$B$7:$C$7,$B$9:$C$9,B130,D130) -> 12.77510047 | J130: -3.545657785 | K130: 13.36656614 | L130: -43.30336213 | M130: 13.36656614 | N130: -43.30336213
A131: 23.8 | B131: 0.415388362 | C131: =Burmester($B$7:$C$7,$B$8:$C$8,$B$9:$C$9,$E$7,$E$8,$E$9,B131) -> 5.964124963 | D131: 0.6942080328 | E131: =ThreePosition_Basic2($E$7,$E$9,$B$7:$C$7,$B$9:$C$9,B131,C131) -> -8.722160339 | F131: -8.488917736 | G131: 37.11284332 | H131: 32.34292577 | I131: =ThreePosition_Basic2($E$7,$E$9,$B$7:$C$7,$B$9:$C$9,B131,D131) -> 12.786256 | J131: -3.512760073 | K131: 13.37408505 | L131: -43.06920158 | M131: 13.37408505 | N131: -43.06920158
A132: 24 | B132: 0.4188790205 | C132: =Burmester($B$7:$C$7,$B$8:$C$8,$B$9:$C$9,$E$7,$E$8,$E$9,B132) -> 5.962360825 | D132: 0.6976876362 | E132: =ThreePosition_Basic2($E$7,$E$9,$B$7:$C$7,$B$9:$C$9,B132,C132) -> -8.76406395 | F132: -8.479455059 | G132: 36.91135714 | H132: 32.03918918 | I132: =ThreePosition_Basic2($E$7,$E$9,$B$7:$C$7,$B$9:$C$9,B132,D132) -> 12.79718461 | J132: -3.480074238 | K132: 13.38098466 | L132: -42.83751536 | M132: 13.38098466 | N132: -42.83751536
A133: 24.2 | B133: 0.422369679 | C133: =Burmester($B$7:$C$7,$B$8:$C$8,$B$9:$C$9,$E$7,$E$8,$E$9,B133) -> 5.960599318 | D133: 0.701161717 | E133: =ThreePosition_Basic2($E$7,$E$9,$B$7:$C$7,$B$9:$C$9,B133,C133) -> -8.805850944 | F133: -8.470115332 | G133: 36.71224202 | H133: 31.73991412 | I133: =ThreePosition_Basic2($E$7,$E$9,$B$7:$C$7,$B$9:$C$9,B133,D133) -> 12.80789001 | J133: -3.447598241 | K133: 13.38728037 | L133: -42.60826104 | M133: 13.38728037 | N133: -42.60826104
A134: 24.4 | B134: 0.4258603375 | C134: =Burmester($B$7:$C$7,$B$8:$C$8,$B$9:$C$9,$E$7,$E$8,$E$9,B134) -> 5.958840366 | D134: 0.7046303383 | E134: =ThreePosition_Basic2($E$7,$E$9,$B$7:$C$7,$B$9:$C$9,B134,C134) -> -8.847524924 | F134: -8.460897845 | G134: 36.51544995 | H134: 31.44500022 | I134: =ThreePosition_Basic2($E$7,$E$9,$B$7:$C$7,$B$9:$C$9,B134,D134) -> 12.81837584 | J134: -3.415330065 | K134: 13.39298712 | L134: -42.38139723 | M134: 13.39298712 | N134: -42.38139723
A135: 24.6 | B135: 0.429350996 | C135: =Burmester($B$7:$C$7,$B$8:$C$8,$B$9:$C$9,$E$7,$E$8,$E$9,B135) -> 5.95708389 | D135: 0.7080935617 | E135: =ThreePosition_Basic2($E$7,$E$9,$B$7:$C$7,$B$9:$C$9,B135,C135) -> -8.88908943 | F135: -8.451801898 | G135: 36.32093428 | H135: 31.15435012 | I135: =ThreePosition_Basic2($E$7,$E$9,$B$7:$C$7,$B$9:$C$9,B135,D135) -> 12.82864565 | J135: -3.383267724 | K135: 13.39811944 | L135: -42.15688351 | M135: 13.39811944 | N135: -42.15688351
A136: 24.8 | B136: 0.4328416545 | C136: =Burmester($B$7:$C$7,$B$8:$C$8,$B$9:$C$9,$E$7,$E$8,$E$9,B136) -> 5.955329816 | D136: 0.7115514472 | E136: =ThreePosition_Basic2($E$7,$E$9,$B$7:$C$7,$B$9:$C$9,B136,C136) -> -8.930547944 | F136: -8.442826805 | G136: 36.12864971 | H136: 30.8678694 | I136: =ThreePosition_Basic2($E$7,$E$9,$B$7:$C$7,$B$9:$C$9,B136,D136) -> 12.83870291 | J136: -3.351409255 | K136: 13.40269144 | L136: -41.93468045 | M136: 13.40269144 | N136: -41.93468045
A137: 25 | B137: 0.436332313 | C137: =Burmester($B$7:$C$7,$B$8:$C$8,$B$9:$C$9,$E$7,$E$8,$E$9,B137) -> 5.95357807 | D137: 0.7150040535 | E137: =ThreePosition_Basic2($E$7,$E$9,$B$7:$C$7,$B$9:$C$9,B137,C137) -> -8.971903888 | F137: -8.433971889 | G137: 35.93855219 | H137: 30.58546647 | I137: =ThreePosition_Basic2($E$7,$E$9,$B$7:$C$7,$B$9:$C$9,B137,D137) -> 12.84855103 | J137: -3.319752718 | K137: 13.40671686 | L137: -41.71474953 | M137: 13.40671686 | N137: -41.71474953
A138: 25.2 | B138: 0.4398229715 | C138: =Burmester($B$7:$C$7,$B$8:$C$8,$B$9:$C$9,$E$7,$E$8,$E$9,B138) -> 5.951828579 | D138: 0.7184514379 | E138: =ThreePosition_Basic2($E$7,$E$9,$B$7:$C$7,$B$9:$C$9,B138,C138) -> -9.013160628 | F138: -8.425236488 | G138: 35.7505989 | H138: 30.30705244 | I138: =ThreePosition_Basic2($E$7,$E$9,$B$7:$C$7,$B$9:$C$9,B138,D138) -> 12.85819334 | J138: -3.288296203 | K138: 13.41020903 | L138: -41.49705315 | M138: 13.41020903 | N138: -41.49705315
A139: 25.4 | B139: 0.44331363 | C139: =Burmester($B$7:$C$7,$B$8:$C$8,$B$9:$C$9,$E$7,$E$8,$E$9,B139) -> 5.950081272 | D139: 0.7218936562 | E139: =ThreePosition_Basic2($E$7,$E$9,$B$7:$C$7,$B$9:$C$9,B139,C139) -> -9.054321478 | F139: -8.416619948 | G139: 35.56474823 | H139: 30.03254105 | I139: =ThreePosition_Basic2($E$7,$E$9,$B$7:$C$7,$B$9:$C$9,B139,D139) -> 12.8676331 | J139: -3.25703782 | K139: 13.41318095 | L139: -41.28155458 | M139: 13.41318095 | N139: -41.28155458
A140: 25.6 | B140: 0.4468042885 | C140: =Burmester($B$7:$C$7,$B$8:$C$8,$B$9:$C$9,$E$7,$E$8,$E$9,B140) -> 5.948336078 | D140: 0.7253307631 | E140: =ThreePosition_Basic2($E$7,$E$9,$B$7:$C$7,$B$9:$C$9,B140,C140) -> -9.095389697 | F140: -8.408121628 | G140: 35.38095969 | H140: 29.76184854 | I140: =ThreePosition_Basic2($E$7,$E$9,$B$7:$C$7,$B$9:$C$9,B140,D140) -> 12.87687349 | J140: -3.225975706 | K140: 13.41564525 | L140: -41.06821795 | M140: 13.41564525 | N140: -41.06821795
A141: 25.8 | B141: =A141*PI()/180 -> 0.450294947 | C141: =Burmester($B$7:$C$7,$B$8:$C$8,$B$9:$C$9,$E$7,$E$8,$E$9,B141) -> 5.946592929 | D141: 0.7287628118 | E141: =ThreePosition_Basic2($E$7,$E$9,$B$7:$C$7,$B$9:$C$9,B141,C141) -> -9.136368493 | F141: -8.3997409 | G141: 35.1991939 | H141: 29.49489359 | I141: =ThreePosition_Basic2($E$7,$E$9,$B$7:$C$7,$B$9:$C$9,B141,D141) -> 12.88591765 | J141: -3.195108019 | K141: 13.4176142 | L141: -40.8570082 | M141: =K141 -> 13.4176142 | N141: =L141 -> -40.8570082
A142: 26 | B142: 0.4537856055 | C142: =Burmester($B$7:$C$7,$B$8:$C$8,$B$9:$C$9,$E$7,$E$8,$E$9,B142) -> 5.944851757 | D142: 0.7321898544 | E142: =ThreePosition_Basic2($E$7,$E$9,$B$7:$C$7,$B$9:$C$9,B142,C142) -> -9.177261024 | F142: -8.391477144 | G142: 35.01941255 | H142: 29.23159719 | I142: =ThreePosition_Basic2($E$7,$E$9,$B$7:$C$7,$B$9:$C$9,B142,D142) -> 12.89476863 | J142: -3.164432943 | K142: 13.41909975 | L142: -40.64789107 | M142: 13.41909975 | N142: -40.64789107
A143: 26.2 | B143: 0.457276264 | C143: =Burmester($B$7:$C$7,$B$8:$C$8,$B$9:$C$9,$E$7,$E$8,$E$9,B143) -> 5.943112495 | D143: 0.7356119417 | E143: =ThreePosition_Basic2($E$7,$E$9,$B$7:$C$7,$B$9:$C$9,B143,C143) -> -9.218070403 | F143: -8.383329752 | G143: 34.84157833 | H143: 28.9718826 | I143: =ThreePosition_Basic2($E$7,$E$9,$B$7:$C$7,$B$9:$C$9,B143,D143) -> 12.90342941 | J143: -3.133948682 | K143: 13.42011354 | L143: -40.4408331 | M143: 13.42011354 | N143: -40.4408331
A144: 26.4 | B144: 0.4607669225 | C144: =Burmester($B$7:$C$7,$B$8:$C$8,$B$9:$C$9,$E$7,$E$8,$E$9,B144) -> 5.941375079 | D144: 0.7390291235 | E144: =ThreePosition_Basic2($E$7,$E$9,$B$7:$C$7,$B$9:$C$9,B144,C144) -> -9.258799691 | F144: -8.375298129 | G144: 34.66565496 | H144: 28.71567525 | I144: =ThreePosition_Basic2($E$7,$E$9,$B$7:$C$7,$B$9:$C$9,B144,D144) -> 12.91190294 | J144: -3.103653464 | K144: 13.42066688 | L144: -40.23580155 | M144: 13.42066688 | N144: -40.23580155
A145: 26.6 | B145: 0.464257581 | C145: =Burmester($B$7:$C$7,$B$8:$C$8,$B$9:$C$9,$E$7,$E$8,$E$9,B145) -> 5.939639443 | D145: 0.7424414482 | E145: =ThreePosition_Basic2($E$7,$E$9,$B$7:$C$7,$B$9:$C$9,B145,C145) -> -9.299451909 | F145: -8.367381689 | G145: 34.49160709 | H145: 28.46290265 | I145: =ThreePosition_Basic2($E$7,$E$9,$B$7:$C$7,$B$9:$C$9,B145,D145) -> 12.92019208 | J145: -3.073545541 | K145: 13.4207708 | L145: -40.03276442 | M145: 13.4207708 | N145: -40.03276442
A146: 26.8 | B146: 0.4677482395 | C146: =Burmester($B$7:$C$7,$B$8:$C$8,$B$9:$C$9,$E$7,$E$8,$E$9,B146) -> 5.937905524 | D146: 0.7458489633 | E146: =ThreePosition_Basic2($E$7,$E$9,$B$7:$C$7,$B$9:$C$9,B146,C146) -> -9.340030032 | F146: -8.359579856 | G146: 34.31940029 | H146: 28.21349435 | I146: =ThreePosition_Basic2($E$7,$E$9,$B$7:$C$7,$B$9:$C$9,B146,D146) -> 12.92829964 | J146: -3.043623183 | K146: 13.42043601 | L146: -39.83169044 | M146: 13.42043601 | N146: -39.83169044
A147: 27 | B147: 0.471238898 | C147: =Burmester($B$7:$C$7,$B$8:$C$8,$B$9:$C$9,$E$7,$E$8,$E$9,B147) -> 5.936173261 | D147: 0.7492517149 | E147: =ThreePosition_Basic2($E$7,$E$9,$B$7:$C$7,$B$9:$C$9,B147,C147) -> -9.380536991 | F147: -8.351892067 | G147: 34.14900105 | H147: 27.96738184 | I147: =ThreePosition_Basic2($E$7,$E$9,$B$7:$C$7,$B$9:$C$9,B147,D147) -> 12.93622838 | J147: -3.013884684 | K147: 13.41967295 | L147: -39.63254901 | M147: 13.41967295 | N147: -39.63254901
A148: 27.2 | B148: 0.4747295565 | C148: =Burmester($B$7:$C$7,$B$8:$C$8,$B$9:$C$9,$E$7,$E$8,$E$9,B148) -> 5.934442591 | D148: 0.7526497485 | E148: =ThreePosition_Basic2($E$7,$E$9,$B$7:$C$7,$B$9:$C$9,B148,C148) -> -9.420975679 | F148: -8.344317768 | G148: 33.9803767 | H148: 27.72449847 | I148: =ThreePosition_Basic2($E$7,$E$9,$B$7:$C$7,$B$9:$C$9,B148,D148) -> 12.94398099 | J148: -2.984328359 | K148: 13.4184918 | L148: -39.43531019 | M148: 13.4184918 | N148: -39.43531019
A149: 27.4 | B149: 0.478220215 | C149: =Burmester($B$7:$C$7,$B$8:$C$8,$B$9:$C$9,$E$7,$E$8,$E$9,B149) -> 5.932713455 | D149: 0.756043108 | E149: =ThreePosition_Basic2($E$7,$E$9,$B$7:$C$7,$B$9:$C$9,B149,C149) -> -9.461348945 | F149: -8.336856417 | G149: 33.8134954 | H149: 27.48477943 | I149: =ThreePosition_Basic2($E$7,$E$9,$B$7:$C$7,$B$9:$C$9,B149,D149) -> 12.95156012 | J149: -2.954952544 | K149: 13.41690246 | L149: -39.23994472 | M149: 13.41690246 | N149: -39.23994472
A150: 27.6 | B150: 0.4817108736 | C150: =Burmester($B$7:$C$7,$B$8:$C$8,$B$9:$C$9,$E$7,$E$8,$E$9,B150) -> 5.930985792 | D150: 0.7594318368 | E150: =ThreePosition_Basic2($E$7,$E$9,$B$7:$C$7,$B$9:$C$9,B150,C150) -> -9.501659604 | F150: -8.32950748 | G150: 33.64832614 | H150: 27.24816165 | I150: =ThreePosition_Basic2($E$7,$E$9,$B$7:$C$7,$B$9:$C$9,B150,D150) -> 12.95896835 | J150: -2.925755593 | K150: 13.41491456 | L150: -39.04642393 | M150: 13.41491456 | N150: -39.04642393
A151: 27.8 | B151: 0.4852015321 | C151: =Burmester($B$7:$C$7,$B$8:$C$8,$B$9:$C$9,$E$7,$E$8,$E$9,B151) -> 5.929259545 | D151: 0.762815977 | E151: =ThreePosition_Basic2($E$7,$E$9,$B$7:$C$7,$B$9:$C$9,B151,C151) -> -9.541910429 | F151: -8.322270435 | G151: 33.48483866 | H151: 27.01458377 | I151: =ThreePosition_Basic2($E$7,$E$9,$B$7:$C$7,$B$9:$C$9,B151,D151) -> 12.96620823 | J151: -2.896735883 | K151: 13.41253751 | L151: -38.8547198 | M151: 13.41253751 | N151: -38.8547198
A152: 28 | B152: 0.4886921906 | C152: =Burmester($B$7:$C$7,$B$8:$C$8,$B$9:$C$9,$E$7,$E$8,$E$9,B152) -> 5.927534656 | D152: 0.7661955699 | E152: =ThreePosition_Basic2($E$7,$E$9,$B$7:$C$7,$B$9:$C$9,B152,C152) -> -9.582104159 | F152: -8.31514477 | G152: 33.32300348 | H152: 26.78398604 | I152: =ThreePosition_Basic2($E$7,$E$9,$B$7:$C$7,$B$9:$C$9,B152,D152) -> 12.97328223 | J152: -2.86789181 | K152: 13.40978045 | L152: -38.6648049 | M152: 13.40978045 | N152: -38.6648049
A153: 28.2 | B153: 0.4921828491 | C153: =Burmester($B$7:$C$7,$B$8:$C$8,$B$9:$C$9,$E$7,$E$8,$E$9,B153) -> 5.925811067 | D153: 0.7695706558 | E153: =ThreePosition_Basic2($E$7,$E$9,$B$7:$C$7,$B$9:$C$9,B153,C153) -> -9.622243498 | F153: -8.308129984 | G153: 33.16279184 | H153: 26.55631031 | I153: =ThreePosition_Basic2($E$7,$E$9,$B$7:$C$7,$B$9:$C$9,B153,D153) -> 12.98019279 | J153: -2.83922179 | K153: 13.40665231 | L153: -38.47665235 | M153: 13.40665231 | N153: -38.47665235
A154: 28.4 | B154: 0.4956735076 | C154: =Burmester($B$7:$C$7,$B$8:$C$8,$B$9:$C$9,$E$7,$E$8,$E$9,B154) -> 5.924088724 | D154: 0.7729412739 | E154: =ThreePosition_Basic2($E$7,$E$9,$B$7:$C$7,$B$9:$C$9,B154,C154) -> -9.662331113 | F154: -8.301225585 | G154: 33.00417568 | H154: 26.33149997 | I154: =ThreePosition_Basic2($E$7,$E$9,$B$7:$C$7,$B$9:$C$9,B154,D154) -> 12.9869423 | J154: -2.810724256 | K154: 13.40316177 | L154: -38.29023587 | M154: 13.40316177 | N154: -38.29023587
A155: 28.6 | B155: 0.4991641661 | C155: =Burmester($B$7:$C$7,$B$8:$C$8,$B$9:$C$9,$E$7,$E$8,$E$9,B155) -> 5.922367572 | D155: 0.7763074629 | E155: =ThreePosition_Basic2($E$7,$E$9,$B$7:$C$7,$B$9:$C$9,B155,C155) -> -9.702369642 | F155: -8.294431091 | G155: 32.84712763 | H155: 26.10949985 | I155: =ThreePosition_Basic2($E$7,$E$9,$B$7:$C$7,$B$9:$C$9,B155,D155) -> 12.99353311 | J155: -2.782397664 | K155: 13.3993173 | L155: -38.10552972 | M155: 13.3993173 | N155: -38.10552972
A156: 28.8 | B156: 0.5026548246 | C156: =Burmester($B$7:$C$7,$B$8:$C$8,$B$9:$C$9,$E$7,$E$8,$E$9,B156) -> 5.920647555 | D156: 0.7796692603 | E156: =ThreePosition_Basic2($E$7,$E$9,$B$7:$C$7,$B$9:$C$9,B156,C156) -> -9.742361686 | F156: -8.287746029 | G156: 32.69162099 | H156: 25.89025624 | I156: =ThreePosition_Basic2($E$7,$E$9,$B$7:$C$7,$B$9:$C$9,B156,D156) -> 12.9999675 | J156: -2.754240485 | K156: 13.39512715 | L156: -37.92250867 | M156: 13.39512715 | N156: -37.92250867
A157: 29 | B157: 0.5061454831 | C157: =Burmester($B$7:$C$7,$B$8:$C$8,$B$9:$C$9,$E$7,$E$8,$E$9,B157) -> 5.91892862 | D157: 0.7830267029 | E157: =ThreePosition_Basic2($E$7,$E$9,$B$7:$C$7,$B$9:$C$9,B157,C157) -> -9.782309819 | F157: -8.281169939 | G157: 32.53762969 | H157: 25.6737168 | I157: =ThreePosition_Basic2($E$7,$E$9,$B$7:$C$7,$B$9:$C$9,B157,D157) -> 13.00624773 | J157: -2.72625121 | K157: 13.39059938 | L157: -37.74114804 | M157: 13.39059938 | N157: -37.74114804
A158: 29.2 | B158: 0.5096361416 | C158: =Burmester($B$7:$C$7,$B$8:$C$8,$B$9:$C$9,$E$7,$E$8,$E$9,B158) -> 5.917210715 | D158: 0.7863798266 | E158: =ThreePosition_Basic2($E$7,$E$9,$B$7:$C$7,$B$9:$C$9,B158,C158) -> -9.822216583 | F158: -8.274702367 | G158: 32.38512828 | H158: 25.45983054 | I158: =ThreePosition_Basic2($E$7,$E$9,$B$7:$C$7,$B$9:$C$9,B158,D158) -> 13.012376 | J158: -2.698428348 | K158: 13.38574182 | L158: -37.56142365 | M158: 13.38574182 | N158: -37.56142365
A159: 29.4 | B159: 0.5131268001 | C159: =Burmester($B$7:$C$7,$B$8:$C$8,$B$9:$C$9,$E$7,$E$8,$E$9,B159) -> 5.915493788 | D159: 0.7897286665 | E159: =ThreePosition_Basic2($E$7,$E$9,$B$7:$C$7,$B$9:$C$9,B159,C159) -> -9.86208449 | F159: -8.268342871 | G159: 32.23409193 | H159: 25.24854776 | I159: =ThreePosition_Basic2($E$7,$E$9,$B$7:$C$7,$B$9:$C$9,B159,D159) -> 13.01835447 | J159: -2.670770427 | K159: 13.38056212 | L159: -37.38331178 | M159: 13.38056212 | N159: -37.38331178
A160: 29.6 | B160: 0.5166174586 | C160: =Burmester($B$7:$C$7,$B$8:$C$8,$B$9:$C$9,$E$7,$E$8,$E$9,B160) -> 5.913777786 | D160: 0.7930732569 | E160: =ThreePosition_Basic2($E$7,$E$9,$B$7:$C$7,$B$9:$C$9,B160,C160) -> -9.901916025 | F160: -8.262091018 | G160: 32.08449637 | H160: 25.03982 | I160: =ThreePosition_Basic2($E$7,$E$9,$B$7:$C$7,$B$9:$C$9,B160,D160) -> 13.02418526 | J160: -2.643275989 | K160: 13.37506775 | L160: -37.20678923 | M160: 13.37506775 | N160: -37.20678923
A161: 29.8 | B161: 0.5201081171 | C161: =Burmester($B$7:$C$7,$B$8:$C$8,$B$9:$C$9,$E$7,$E$8,$E$9,B161) -> 5.912062661 | D161: 0.7964136313 | E161: =ThreePosition_Basic2($E$7,$E$9,$B$7:$C$7,$B$9:$C$9,B161,C161) -> -9.941713644 | F161: -8.255946385 | G161: 31.93631792 | H161: 24.83360003 | I161: =ThreePosition_Basic2($E$7,$E$9,$B$7:$C$7,$B$9:$C$9,B161,D161) -> 13.02987046 | J161: -2.615943598 | K161: 13.36926597 | L161: -37.03183324 | M161: 13.36926597 | N161: -37.03183324
A162: 30 | B162: 0.5235987756 | C162: =Burmester($B$7:$C$7,$B$8:$C$8,$B$9:$C$9,$E$7,$E$8,$E$9,B162) -> 5.910348361 | D162: 0.7997498226 | E162: =ThreePosition_Basic2($E$7,$E$9,$B$7:$C$7,$B$9:$C$9,B162,C162) -> -9.981479778 | F162: -8.249908557 | G162: 31.78953343 | H162: 24.6298418 | I162: =ThreePosition_Basic2($E$7,$E$9,$B$7:$C$7,$B$9:$C$9,B162,D162) -> 13.0354121 | J162: -2.588771832 | K162: 13.36316388 | L162: -36.85842151 | M162: 13.36316388 | N162: -36.85842151
A163: 30.2 | B163: 0.5270894341 | C163: =Burmester($B$7:$C$7,$B$8:$C$8,$B$9:$C$9,$E$7,$E$8,$E$9,B163) -> 5.908634838 | D163: 0.8030818628 | E163: =ThreePosition_Basic2($E$7,$E$9,$B$7:$C$7,$B$9:$C$9,B163,C163) -> -10.02121683 | F163: -8.24397713 | G163: 31.64412029 | H163: 24.42850037 | I163: =ThreePosition_Basic2($E$7,$E$9,$B$7:$C$7,$B$9:$C$9,B163,D163) -> 13.04081218 | J163: -2.561759287 | K163: 13.35676839 | L163: -36.68653219 | M163: 13.35676839 | N163: -36.68653219
A164: 30.4 | B164: 0.5305800926 | C164: =Burmester($B$7:$C$7,$B$8:$C$8,$B$9:$C$9,$E$7,$E$8,$E$9,B164) -> 5.906922043 | D164: 0.8064097831 | E164: =ThreePosition_Basic2($E$7,$E$9,$B$7:$C$7,$B$9:$C$9,B164,C164) -> -10.06092718 | F164: -8.238151709 | G164: 31.50005641 | H164: 24.22953194 | I164: =ThreePosition_Basic2($E$7,$E$9,$B$7:$C$7,$B$9:$C$9,B164,D164) -> 13.04607267 | J164: -2.534904574 | K164: 13.35008625 | L164: -36.51614386 | M164: 13.35008625 | N164: -36.51614386
A165: 30.6 | B165: 0.5340707511 | C165: =Burmester($B$7:$C$7,$B$8:$C$8,$B$9:$C$9,$E$7,$E$8,$E$9,B165) -> 5.905209928 | D165: 0.8097336142 | E165: =ThreePosition_Basic2($E$7,$E$9,$B$7:$C$7,$B$9:$C$9,B165,C165) -> -10.10061319 | F165: -8.232431907 | G165: 31.3573202 | H165: 24.03289375 | I165: =ThreePosition_Basic2($E$7,$E$9,$B$7:$C$7,$B$9:$C$9,B165,D165) -> 13.05119549 | J165: -2.508206324 | K165: 13.34312406 | L165: -36.3472355 | M165: 13.34312406 | N165: -36.3472355
A166: 30.8 | B166: 0.5375614096 | C166: =Burmester($B$7:$C$7,$B$8:$C$8,$B$9:$C$9,$E$7,$E$8,$E$9,B166) -> 5.903498445 | D166: 0.8130533861 | E166: =ThreePosition_Basic2($E$7,$E$9,$B$7:$C$7,$B$9:$C$9,B166,C166) -> -10.14027718 | F166: -8.226817347 | G166: 31.21589054 | H166: 23.83854409 | I166: =ThreePosition_Basic2($E$7,$E$9,$B$7:$C$7,$B$9:$C$9,B166,D166) -> 13.05618253 | J166: -2.481663179 | K166: 13.33588823 | L166: -36.17978652 | M166: 13.33588823 | N166: -36.17978652
A167: 31 | B167: 0.5410520681 | C167: =Burmester($B$7:$C$7,$B$8:$C$8,$B$9:$C$9,$E$7,$E$8,$E$9,B167) -> 5.901787549 | D167: 0.8163691278 | E167: =ThreePosition_Basic2($E$7,$E$9,$B$7:$C$7,$B$9:$C$9,B167,C167) -> -10.17992147 | F167: -8.221307662 | G167: 31.07574681 | H167: 23.64644226 | I167: =ThreePosition_Basic2($E$7,$E$9,$B$7:$C$7,$B$9:$C$9,B167,D167) -> 13.06103564 | J167: -2.455273802 | K167: 13.32838503 | L167: -36.01377673 | M167: 13.32838503 | N167: -36.01377673
A168: 31.2 | B168: 0.5445427266 | C168: =Burmester($B$7:$C$7,$B$8:$C$8,$B$9:$C$9,$E$7,$E$8,$E$9,B168) -> 5.900077191 | D168: 0.819680868 | E168: =ThreePosition_Basic2($E$7,$E$9,$B$7:$C$7,$B$9:$C$9,B168,C168) -> -10.21954834 | F168: -8.215902492 | G168: 30.93686883 | H168: 23.45654853 | I168: =ThreePosition_Basic2($E$7,$E$9,$B$7:$C$7,$B$9:$C$9,B168,D168) -> 13.06575663 | J168: -2.429036868 | K168: 13.32062059 | L168: -35.84918631 | M168: 13.32062059 | N168: -35.84918631
A169: 31.4 | B169: 0.5480333851 | C169: =Burmester($B$7:$C$7,$B$8:$C$8,$B$9:$C$9,$E$7,$E$8,$E$9,B169) -> 5.898367328 | D169: 0.8229886346 | E169: =ThreePosition_Basic2($E$7,$E$9,$B$7:$C$7,$B$9:$C$9,B169,C169) -> -10.25916007 | F169: -8.210601489 | G169: 30.79923687 | H169: 23.26882409 | I169: =ThreePosition_Basic2($E$7,$E$9,$B$7:$C$7,$B$9:$C$9,B169,D169) -> 13.0703473 | J169: -2.402951069 | K169: 13.31260086 | L169: -35.68599583 | M169: 13.31260086 | N169: -35.68599583
A170: 31.6 | B170: 0.5515240436 | C170: =Burmester($B$7:$C$7,$B$8:$C$8,$B$9:$C$9,$E$7,$E$8,$E$9,B170) -> 5.896657914 | D170: 0.8262924549 | E170: =ThreePosition_Basic2($E$7,$E$9,$B$7:$C$7,$B$9:$C$9,B170,C170) -> -10.29875888 | F170: -8.205404311 | G170: 30.66283163 | H170: 23.0832311 | I170: =ThreePosition_Basic2($E$7,$E$9,$B$7:$C$7,$B$9:$C$9,B170,D170) -> 13.0748094 | J170: -2.377015112 | K170: 13.30433168 | L170: -35.52418623 | M170: 13.30433168 | N170: -35.52418623
A171: 31.8 | B171: 0.5550147021 | C171: =Burmester($B$7:$C$7,$B$8:$C$8,$B$9:$C$9,$E$7,$E$8,$E$9,B171) -> 5.894948904 | D171: 0.8295923555 | E171: =ThreePosition_Basic2($E$7,$E$9,$B$7:$C$7,$B$9:$C$9,B171,C171) -> -10.33834702 | F171: -8.200310626 | G171: 30.52763425 | H171: 22.89973255 | I171: =ThreePosition_Basic2($E$7,$E$9,$B$7:$C$7,$B$9:$C$9,B171,D171) -> 13.07914463 | J171: -2.351227719 | K171: 13.29581874 | L171: -35.36373881 | M171: 13.29581874 | N171: -35.36373881
A172: 32 | B172: 0.5585053606 | C172: =Burmester($B$7:$C$7,$B$8:$C$8,$B$9:$C$9,$E$7,$E$8,$E$9,B172) -> 5.893240255 | D172: 0.8328883625 | E172: =ThreePosition_Basic2($E$7,$E$9,$B$7:$C$7,$B$9:$C$9,B172,C172) -> -10.37792669 | F172: -8.195320111 | G172: 30.39362623 | H172: 22.71829235 | I172: =ThreePosition_Basic2($E$7,$E$9,$B$7:$C$7,$B$9:$C$9,B172,D172) -> 13.08335469 | J172: -2.325587626 | K172: 13.2870676 | L172: -35.20463521 | M172: 13.2870676 | N172: -35.20463521
A173: 32.2 | B173: 0.5619960191 | C173: =Burmester($B$7:$C$7,$B$8:$C$8,$B$9:$C$9,$E$7,$E$8,$E$9,B173) -> 5.891531923 | D173: 0.8361805013 | E173: =ThreePosition_Basic2($E$7,$E$9,$B$7:$C$7,$B$9:$C$9,B173,C173) -> -10.41750007 | F173: -8.190432451 | G173: 30.26078953 | H173: 22.53887519 | I173: =ThreePosition_Basic2($E$7,$E$9,$B$7:$C$7,$B$9:$C$9,B173,D173) -> 13.08744123 | J173: -2.300093586 | K173: 13.27808366 | L173: -35.04685744 | M173: 13.27808366 | N173: -35.04685744
A174: 32.4 | B174: 0.5654866776 | C174: =Burmester($B$7:$C$7,$B$8:$C$8,$B$9:$C$9,$E$7,$E$8,$E$9,B174) -> 5.889823864 | D174: 0.8394687967 | E174: =ThreePosition_Basic2($E$7,$E$9,$B$7:$C$7,$B$9:$C$9,B174,C174) -> -10.45706934 | F174: -8.185647341 | G174: 30.12910645 | H174: 22.36144663 | I174: =ThreePosition_Basic2($E$7,$E$9,$B$7:$C$7,$B$9:$C$9,B174,D174) -> 13.09140588 | J174: -2.274744363 | K174: 13.26887224 | L174: -34.89038783 | M174: 13.26887224 | N174: -34.89038783
A175: 32.6 | B175: 0.5689773362 | C175: =Burmester($B$7:$C$7,$B$8:$C$8,$B$9:$C$9,$E$7,$E$8,$E$9,B175) -> 5.888116038 | D175: 0.8427532732 | E175: =ThreePosition_Basic2($E$7,$E$9,$B$7:$C$7,$B$9:$C$9,B175,C175) -> -10.49663666 | F175: -8.180964484 | G175: 29.99855968 | H175: 22.18597298 | I175: =ThreePosition_Basic2($E$7,$E$9,$B$7:$C$7,$B$9:$C$9,B175,D175) -> 13.09525023 | J175: -2.249538737 | K175: 13.25943849 | L175: -34.73520901 | M175: 13.25943849 | N175: -34.73520901
A176: 32.8 | B176: 0.5724679947 | C176: =Burmester($B$7:$C$7,$B$8:$C$8,$B$9:$C$9,$E$7,$E$8,$E$9,B176) -> 5.8864084 | D176: 0.8460339543 | E176: =ThreePosition_Basic2($E$7,$E$9,$B$7:$C$7,$B$9:$C$9,B176,C176) -> -10.53620415 | F176: -8.176383591 | G176: 29.86913227 | H176: 22.01242133 | I176: =ThreePosition_Basic2($E$7,$E$9,$B$7:$C$7,$B$9:$C$9,B176,D176) -> 13.09897584 | J176: -2.224475502 | K176: 13.24978747 | L176: -34.58130398 | M176: 13.24978747 | N176: -34.58130398
A177: 33 | B177: 0.5759586532 | C177: =Burmester($B$7:$C$7,$B$8:$C$8,$B$9:$C$9,$E$7,$E$8,$E$9,B177) -> 5.884700911 | D177: 0.8493108634 | E177: =ThreePosition_Basic2($E$7,$E$9,$B$7:$C$7,$B$9:$C$9,B177,C177) -> -10.57577395 | F177: -8.171904382 | G177: 29.74080764 | H177: 21.84075952 | I177: =ThreePosition_Basic2($E$7,$E$9,$B$7:$C$7,$B$9:$C$9,B177,D177) -> 13.10258426 | J177: -2.199553466 | K177: 13.2399241 | L177: -34.42865601 | M177: 13.2399241 | N177: -34.42865601
A178: 33.2 | B178: 0.5794493117 | C178: =Burmester($B$7:$C$7,$B$8:$C$8,$B$9:$C$9,$E$7,$E$8,$E$9,B178) -> 5.882993528 | D178: 0.8525840229 | E178: =ThreePosition_Basic2($E$7,$E$9,$B$7:$C$7,$B$9:$C$9,B178,C178) -> -10.61534815 | F178: -8.167526586 | G178: 29.61356954 | H178: 21.6709561 | I178: =ThreePosition_Basic2($E$7,$E$9,$B$7:$C$7,$B$9:$C$9,B178,D178) -> 13.10607698 | J178: -2.174771449 | K178: 13.2298532 | L178: -34.27724869 | M178: 13.2298532 | N178: -34.27724869
A179: 33.4 | B179: 0.5829399702 | C179: =Burmester($B$7:$C$7,$B$8:$C$8,$B$9:$C$9,$E$7,$E$8,$E$9,B179) -> 5.881286211 | D179: 0.8558534551 | E179: =ThreePosition_Basic2($E$7,$E$9,$B$7:$C$7,$B$9:$C$9,B179,C179) -> -10.65492885 | F179: -8.16324994 | G179: 29.48740206 | H179: 21.50298035 | I179: =ThreePosition_Basic2($E$7,$E$9,$B$7:$C$7,$B$9:$C$9,B179,D179) -> 13.1094555 | J179: -2.150128287 | K179: 13.21957948 | L179: -34.1270659 | M179: 13.21957948 | N179: -34.1270659
A180: 33.6 | B180: 0.5864306287 | C180: =Burmester($B$7:$C$7,$B$8:$C$8,$B$9:$C$9,$E$7,$E$8,$E$9,B180) -> 5.879578921 | D180: 0.8591191815 | E180: =ThreePosition_Basic2($E$7,$E$9,$B$7:$C$7,$B$9:$C$9,B180,C180) -> -10.69451812 | F180: -8.159074189 | G180: 29.36228961 | H180: 21.3368022 | I180: =ThreePosition_Basic2($E$7,$E$9,$B$7:$C$7,$B$9:$C$9,B180,D180) -> 13.11272127 | J180: -2.125622827 | K180: 13.20910753 | L180: -33.97809182 | M180: 13.20910753 | N180: -33.97809182
A181: 33.8 | B181: 0.5899212872 | C181: =Burmester($B$7:$C$7,$B$8:$C$8,$B$9:$C$9,$E$7,$E$8,$E$9,B181) -> 5.877871616 | D181: 0.8623812232 | E181: =ThreePosition_Basic2($E$7,$E$9,$B$7:$C$7,$B$9:$C$9,B181,C181) -> -10.73411803 | F181: -8.154999087 | G181: 29.23821694 | H181: 21.17239227 | I181: =ThreePosition_Basic2($E$7,$E$9,$B$7:$C$7,$B$9:$C$9,B181,D181) -> 13.1158757 | J181: -2.101253929 | K181: 13.19844184 | L181: -33.83031092 | M181: 13.19844184 | N181: -33.83031092
A182: 34 | B182: 0.5934119457 | C182: =Burmester($B$7:$C$7,$B$8:$C$8,$B$9:$C$9,$E$7,$E$8,$E$9,B182) -> 5.876164258 | D182: 0.8656396007 | E182: =ThreePosition_Basic2($E$7,$E$9,$B$7:$C$7,$B$9:$C$9,B182,C182) -> -10.77373064 | F182: -8.151024396 | G182: 29.11516909 | H182: 21.00972181 | I182: =ThreePosition_Basic2($E$7,$E$9,$B$7:$C$7,$B$9:$C$9,B182,D182) -> 13.11892022 | J182: -2.077020468 | K182: 13.18758679 | L182: -33.68370791 | M182: 13.18758679 | N182: -33.68370791
A183: 34.2 | B183: 0.5969026042 | C183: =Burmester($B$7:$C$7,$B$8:$C$8,$B$9:$C$9,$E$7,$E$8,$E$9,B183) -> 5.874456808 | D183: 0.8688943343 | E183: =ThreePosition_Basic2($E$7,$E$9,$B$7:$C$7,$B$9:$C$9,B183,C183) -> -10.81335797 | F183: -8.147149886 | G183: 28.9931314 | H183: 20.84876272 | I183: =ThreePosition_Basic2($E$7,$E$9,$B$7:$C$7,$B$9:$C$9,B183,D183) -> 13.12185619 | J183: -2.052921329 | K183: 13.17654668 | L183: -33.5382678 | M183: 13.17654668 | N183: -33.5382678
A184: 34.4 | B184: 0.6003932627 | C184: =Burmester($B$7:$C$7,$B$8:$C$8,$B$9:$C$9,$E$7,$E$8,$E$9,B184) -> 5.872749226 | D184: 0.8721454435 | E184: =ThreePosition_Basic2($E$7,$E$9,$B$7:$C$7,$B$9:$C$9,B184,C184) -> -10.85300205 | F184: -8.143375337 | G184: 28.87208952 | H184: 20.68948748 | I184: =ThreePosition_Basic2($E$7,$E$9,$B$7:$C$7,$B$9:$C$9,B184,D184) -> 13.12468496 | J184: -2.028955412 | K184: 13.16532568 | L184: -33.39397587 | M184: 13.16532568 | N184: -33.39397587
A185: 34.6 | B185: 0.6038839212 | C185: =Burmester($B$7:$C$7,$B$8:$C$8,$B$9:$C$9,$E$7,$E$8,$E$9,B185) -> 5.871041476 | D185: 0.8753929474 | E185: =ThreePosition_Basic2($E$7,$E$9,$B$7:$C$7,$B$9:$C$9,B185,C185) -> -10.8926649 | F185: -8.139700534 | G185: 28.75202937 | H185: 20.53186919 | I185: =ThreePosition_Basic2($E$7,$E$9,$B$7:$C$7,$B$9:$C$9,B185,D185) -> 13.12740787 | J185: -2.005121626 | K185: 13.15392789 | L185: -33.25081763 | M185: 13.15392789 | N185: -33.25081763
A186: 34.8 | B186: 0.6073745797 | C186: =Burmester($B$7:$C$7,$B$8:$C$8,$B$9:$C$9,$E$7,$E$8,$E$9,B186) -> 5.869333519 | D186: 0.8786368647 | E186: =ThreePosition_Basic2($E$7,$E$9,$B$7:$C$7,$B$9:$C$9,B186,C186) -> -10.93234852 | F186: -8.136125273 | G186: 28.63293716 | H186: 20.37588152 | I186: =ThreePosition_Basic2($E$7,$E$9,$B$7:$C$7,$B$9:$C$9,B186,D186) -> 13.13002622 | J186: -1.981418897 | K186: 13.14235732 | L186: -33.10877887 | M186: 13.14235732 | N186: -33.10877887
A187: 35 | B187: 0.6108652382 | C187: =Burmester($B$7:$C$7,$B$8:$C$8,$B$9:$C$9,$E$7,$E$8,$E$9,B187) -> 5.867625317 | D187: 0.8818772136 | E187: =ThreePosition_Basic2($E$7,$E$9,$B$7:$C$7,$B$9:$C$9,B187,C187) -> -10.9720549 | F187: -8.132649356 | G187: 28.51479937 | H187: 20.2214987 | I187: =ThreePosition_Basic2($E$7,$E$9,$B$7:$C$7,$B$9:$C$9,B187,D187) -> 13.1325413 | J187: -1.957846158 | K187: 13.13061786 | L187: -32.9678456 | M187: 13.13061786 | N187: -32.9678456
A188: 35.2 | B188: 0.6143558967 | C188: =Burmester($B$7:$C$7,$B$8:$C$8,$B$9:$C$9,$E$7,$E$8,$E$9,B188) -> 5.865916833 | D188: 0.885114012 | E188: =ThreePosition_Basic2($E$7,$E$9,$B$7:$C$7,$B$9:$C$9,B188,C188) -> -11.01178603 | F188: -8.129272596 | G188: 28.39760273 | H188: 20.0686955 | I188: =ThreePosition_Basic2($E$7,$E$9,$B$7:$C$7,$B$9:$C$9,B188,D188) -> 13.13495435 | J188: -1.934402358 | K188: 13.11871334 | L188: -32.8280041 | M188: 13.11871334 | N188: -32.8280041
A189: 35.4 | B189: 0.6178465552 | C189: =Burmester($B$7:$C$7,$B$8:$C$8,$B$9:$C$9,$E$7,$E$8,$E$9,B189) -> 5.864208031 | D189: 0.8883472772 | E189: =ThreePosition_Basic2($E$7,$E$9,$B$7:$C$7,$B$9:$C$9,B189,C189) -> -11.05154388 | F189: -8.125994811 | G189: 28.28133424 | H189: 19.91744725 | I189: =ThreePosition_Basic2($E$7,$E$9,$B$7:$C$7,$B$9:$C$9,B189,D189) -> 13.13726662 | J189: -1.911086454 | K189: 13.10664749 | L189: -32.68924086 | M189: 13.10664749 | N189: -32.68924086
A190: 35.6 | B190: 0.6213372137 | C190: =Burmester($B$7:$C$7,$B$8:$C$8,$B$9:$C$9,$E$7,$E$8,$E$9,B190) -> 5.862498874 | D190: 0.8915770261 | E190: =ThreePosition_Basic2($E$7,$E$9,$B$7:$C$7,$B$9:$C$9,B190,C190) -> -11.09133041 | F190: -8.122815828 | G190: 28.16598117 | H190: 19.76772977 | I190: =ThreePosition_Basic2($E$7,$E$9,$B$7:$C$7,$B$9:$C$9,B190,D190) -> 13.13947933 | J190: -1.887897417 | K190: 13.09442397 | L190: -32.55154261 | M190: 13.09442397 | N190: -32.55154261
A191: 35.8 | B191: 0.6248278722 | C191: =Burmester($B$7:$C$7,$B$8:$C$8,$B$9:$C$9,$E$7,$E$8,$E$9,B191) -> 5.860789325 | D191: 0.8948032751 | E191: =ThreePosition_Basic2($E$7,$E$9,$B$7:$C$7,$B$9:$C$9,B191,C191) -> -11.13114759 | F191: -8.119735484 | G191: 28.051531 | H191: 19.61951939 | I191: =ThreePosition_Basic2($E$7,$E$9,$B$7:$C$7,$B$9:$C$9,B191,D191) -> 13.14159367 | J191: -1.864834229 | K191: 13.08204634 | L191: -32.41489631 | M191: 13.08204634 | N191: -32.41489631
A192: 36 | B192: 0.6283185307 | C192: =Burmester($B$7:$C$7,$B$8:$C$8,$B$9:$C$9,$E$7,$E$8,$E$9,B192) -> 5.85907935 | D192: 0.8980260404 | E192: =ThreePosition_Basic2($E$7,$E$9,$B$7:$C$7,$B$9:$C$9,B192,C192) -> -11.17099735 | F192: -8.11675362 | G192: 27.93797146 | H192: 19.47279295 | I192: =ThreePosition_Basic2($E$7,$E$9,$B$7:$C$7,$B$9:$C$9,B192,D192) -> 13.1436108 | J192: -1.841895883 | K192: 13.06951809 | L192: -32.27928914 | M192: 13.06951809 | N192: -32.27928914
A193: 36.2 | B193: 0.6318091892 | C193: =Burmester($B$7:$C$7,$B$8:$C$8,$B$9:$C$9,$E$7,$E$8,$E$9,B193) -> 5.857368912 | D193: 0.9012453376 | E193: =ThreePosition_Basic2($E$7,$E$9,$B$7:$C$7,$B$9:$C$9,B193,C193) -> -11.21088163 | F193: -8.113870089 | G193: 27.82529053 | H193: 19.32752776 | I193: =ThreePosition_Basic2($E$7,$E$9,$B$7:$C$7,$B$9:$C$9,B193,D193) -> 13.14553189 | J193: -1.819081382 | K193: 13.05684264 | L193: -32.14470848 | M193: 13.05684264 | N193: -32.14470848
A194: 36.4 | B194: 0.6352998477 | C194: =Burmester($B$7:$C$7,$B$8:$C$8,$B$9:$C$9,$E$7,$E$8,$E$9,B194) -> 5.855657977 | D194: 0.9044611821 | E194: =ThreePosition_Basic2($E$7,$E$9,$B$7:$C$7,$B$9:$C$9,B194,C194) -> -11.25080238 | F194: -8.111084749 | G194: 27.7134764 | H194: 19.18370157 | I194: =ThreePosition_Basic2($E$7,$E$9,$B$7:$C$7,$B$9:$C$9,B194,D194) -> 13.14735806 | J194: -1.796389742 | K194: 13.04402331 | L194: -32.01114194 | M194: 13.04402331 | N194: -32.01114194
A195: 36.6 | B195: 0.6387905062 | C195: =Burmester($B$7:$C$7,$B$8:$C$8,$B$9:$C$9,$E$7,$E$8,$E$9,B195) -> 5.853946509 | D195: 0.9076735885 | E195: =ThreePosition_Basic2($E$7,$E$9,$B$7:$C$7,$B$9:$C$9,B195,C195) -> -11.29076151 | F195: -8.108397467 | G195: 27.60251748 | H195: 19.04129263 | I195: =ThreePosition_Basic2($E$7,$E$9,$B$7:$C$7,$B$9:$C$9,B195,D195) -> 13.14909043 | J195: -1.773819988 | K195: 13.03106338 | L195: -31.87857732 | M195: 13.03106338 | N195: -31.87857732
A196: 36.8 | B196: 0.6422811647 | C196: =Burmester($B$7:$C$7,$B$8:$C$8,$B$9:$C$9,$E$7,$E$8,$E$9,B196) -> 5.852234474 | D196: 0.9108825716 | E196: =ThreePosition_Basic2($E$7,$E$9,$B$7:$C$7,$B$9:$C$9,B196,C196) -> -11.33076095 | F196: -8.105808119 | G196: 27.49240242 | H196: 18.9002796 | I196: =ThreePosition_Basic2($E$7,$E$9,$B$7:$C$7,$B$9:$C$9,B196,D196) -> 13.15073009 | J196: -1.751371156 | K196: 13.01796603 | L196: -31.74700264 | M196: 13.01796603 | N196: -31.74700264
A197: 37 | B197: 0.6457718232 | C197: =Burmester($B$7:$C$7,$B$8:$C$8,$B$9:$C$9,$E$7,$E$8,$E$9,B197) -> 5.850521838 | D197: 0.9140881453 | E197: =ThreePosition_Basic2($E$7,$E$9,$B$7:$C$7,$B$9:$C$9,B197,C197) -> -11.37080261 | F197: -8.103316587 | G197: 27.38312005 | H197: 18.76064159 | I197: =ThreePosition_Basic2($E$7,$E$9,$B$7:$C$7,$B$9:$C$9,B197,D197) -> 13.15227812 | J197: -1.729042293 | K197: 13.00473438 | L197: -31.61640611 | M197: 13.00473438 | N197: -31.61640611
A198: 37.2 | B198: 0.6492624817 | C198: =Burmester($B$7:$C$7,$B$8:$C$8,$B$9:$C$9,$E$7,$E$8,$E$9,B198) -> 5.848808566 | D198: 0.9172903234 | E198: =ThreePosition_Basic2($E$7,$E$9,$B$7:$C$7,$B$9:$C$9,B198,C198) -> -11.41088839 | F198: -8.100922762 | G198: 27.27465942 | H198: 18.62235812 | I198: =ThreePosition_Basic2($E$7,$E$9,$B$7:$C$7,$B$9:$C$9,B198,D198) -> 13.15373557 | J198: -1.706832457 | K198: 12.99137148 | L198: -31.48677612 | M198: 12.99137148 | N198: -31.48677612
A199: 37.4 | B199: 0.6527531402 | C199: =Burmester($B$7:$C$7,$B$8:$C$8,$B$9:$C$9,$E$7,$E$8,$E$9,B199) -> 5.847094625 | D199: 0.9204891193 | E199: =ThreePosition_Basic2($E$7,$E$9,$B$7:$C$7,$B$9:$C$9,B199,C199) -> -11.4510202 | F199: -8.098626541 | G199: 27.16700979 | H199: 18.48540911 | I199: =ThreePosition_Basic2($E$7,$E$9,$B$7:$C$7,$B$9:$C$9,B199,D199) -> 13.15510348 | J199: -1.684740715 | K199: 12.97788033 | L199: -31.35810126 | M199: 12.97788033 | N199: -31.35810126
A200: 37.6 | B200: 0.6562437987 | C200: =Burmester($B$7:$C$7,$B$8:$C$8,$B$9:$C$9,$E$7,$E$8,$E$9,B200) -> 5.845379981 | D200: 0.9236845459 | E200: =ThreePosition_Basic2($E$7,$E$9,$B$7:$C$7,$B$9:$C$9,B200,C200) -> -11.49119994 | F200: -8.096427833 | G200: 27.0601606 | H200: 18.34977491 | I200: =ThreePosition_Basic2($E$7,$E$9,$B$7:$C$7,$B$9:$C$9,B200,D200) -> 13.15638287 | J200: -1.662766144 | K200: 12.96426382 | L200: -31.23037032 | M200: 12.96426382 | N200: -31.23037032
A201: 37.8 | B201: 0.6597344573 | C201: =Burmester($B$7:$C$7,$B$8:$C$8,$B$9:$C$9,$E$7,$E$8,$E$9,B201) -> 5.8436646 | D201: 0.9268766159 | E201: =ThreePosition_Basic2($E$7,$E$9,$B$7:$C$7,$B$9:$C$9,B201,C201) -> -11.53142949 | F201: -8.094326549 | G201: 26.95410149 | H201: 18.21543624 | I201: =ThreePosition_Basic2($E$7,$E$9,$B$7:$C$7,$B$9:$C$9,B201,D201) -> 13.15757474 | J201: -1.640907831 | K201: 12.95052483 | L201: -31.10357224 | M201: 12.95052483 | N201: -31.10357224
A202: 38 | B202: 0.6632251158 | C202: =Burmester($B$7:$C$7,$B$8:$C$8,$B$9:$C$9,$E$7,$E$8,$E$9,B202) -> 5.841948451 | D202: 0.9300653416 | E202: =ThreePosition_Basic2($E$7,$E$9,$B$7:$C$7,$B$9:$C$9,B202,C202) -> -11.57171076 | F202: -8.092322613 | G202: 26.84882229 | H202: 18.08237419 | I202: =ThreePosition_Basic2($E$7,$E$9,$B$7:$C$7,$B$9:$C$9,B202,D202) -> 13.15868007 | J202: -1.619164875 | K202: 12.93666615 | L202: -30.97769617 | M202: 12.93666615 | N202: -30.97769617
... 1710 more rows

Sheet Sheet1
B3: d2 | C3: 10 | D3: -20 | E3: a2 | F3: 3.560471674 | G3: 204 | J3: d2 | K3: -10 | L3: 20 | M3: a2 | N3: -3.560471674 | O3: -204
B4: d3 | C4: 20 | D4: -10 | E4: a3 | F4: 2.181661565 | G4: 125 | J4: d3 | K4: 10 | L4: 10 | M4: a3 | N4: -1.378810109 | O4: -79
B5: d4 | C5: 10 | D5: 0 | E5: a4 | F5: 1.483529864 | G5: 85 | J5: d4 | K5: 0 | L5: 20 | M5: a4 | N5: -2.07694181 | O5: -119
N37: d2 | O37: 0 | P37: -20 | Q37: a2 | R37: 2.07694181 | S37: 119
B38: d2 | C38: -10 | D38: -10 | E38: a2 | F38: 1.378810109 | G38: 79 | N38: d3 | O38: 10 | P38: -10 | Q38: a3 | R38: 0.6981317008 | S38: 40
B39: d3 | C39: -20 | D39: 10 | E39: a3 | F39: -2.181661565 | G39: -125 | N39: d4 | O39: -10 | P39: 0 | Q39: a4 | R39: -1.483529864 | S39: -85
B40: d4 | C40: -10 | D40: 10 | E40: a4 | F40: -0.6981317008 | G40: -40
